Workbook

Sheet Instructions

Sheet 3Dwt
W1: Location (x,y): | Y1: 10, 0 | Z1: 1, 1 | AA1: 1, 1 | AB1: 1, 1 | AZ1: 7.511600948e-07 | BA1: Frequency
E2: Simulations Left: | AZ2: Bin | BA2: 0
F3: 1 | AC3: Histogram input: | AF3: Histogram output: | AH3: =Y1 -> 10, 0 | AM3: Histogram input: | AP3: Histogram output: | AR3: =Z1 -> 1, 1 | AZ3: More | BA3: 10
AD4: Bin Range | AF4: Bin | AG4: Frequency | AH4: Wt. Mean | AI4: Area | AJ4: Prob | AK4: Cummul. Prob. | AN4: Bin Range | AP4: Bin | AQ4: Frequency | AR4: Wt. Mean | AS4: Area | AT4: Prob | AU4: Cummul. Prob.
A5: Status | B5: Parameter | C5: Value | D5: Sigma | E5: Units | F5: Distribution | AD5: =AG23 -> 0 | AF5: 2.977963882e-11 | AG5: 1 | AH5: =AG5*AF5 -> 2.977963882e-11 | AI5: =AG5*AG$25/12 -> 0 | AJ5: =AI5/AI$20 ->  | AK5: =AJ5+AK6 ->  | AN5: =AQ23 -> 0 | AP5: 8.432712586e-11 | AQ5: 1 | AR5: =AQ5*AP5 -> 8.432712586e-11 | AS5: =AQ5*AQ$25/12 -> 0 | AT5: =AS5/AS$20 ->  | AU5: =AT5+AU6 -> 
A6: Input concentration | B6: Co | C6: 24.80213594 | D6: 10 | E6: ug/L or mg/m^3 | F6: n | AD6: =AD5+AG$25/12 -> 0 | AF6: 1.168220781 | AG6: 3 | AH6: =AG6*AF6 -> 3.504662344 | AI6: 0 | AN6: =AN5+AQ$25/12 -> 0 | AP6: 3.308055596 | AQ6: 3 | AR6: =AQ6*AP6 -> 9.924166789 | AS6: =AQ6*AQ$25/12 -> 0
A7: x dispersivity | B7: ax | C7: 1 | D7: 0 | E7: m | F7: n | AD7: 0 | AF7: 2.336441563 | AG7: 2 | AH7: 4.672883125 | AI7: 0 | AN7: 0 | AP7: 6.616111192 | AQ7: 2 | AR7: 13.23222238 | AS7: 0
A8: y dispersivity | B8: ay | C8: 0.1 | D8: 0 | E8: m | F8: n | AD8: 0 | AF8: 3.504662344 | AG8: 7 | AH8: 24.53263641 | AI8: 0 | AN8: 0 | AP8: 9.924166788 | AQ8: 7 | AR8: 69.46916752 | AS8: 0
A9: z dispersivity | B9: az | C9: 0.01 | D9: 0 | E9: m | F9: n | AD9: 0 | AF9: 4.672883125 | AG9: 16 | AH9: 74.76613 | AI9: 0 | AN9: 0 | AP9: 13.23222238 | AQ9: 16 | AR9: 211.7155582 | AS9: 0
A10: Water velocity | B10: v | C10: 0.1 | D10: 0 | E10: m/day | F10: n | AD10: 0 | AF10: 5.841103907 | AG10: 19 | AH10: 110.9809742 | AI10: 0 | AN10: 0 | AP10: 16.54027798 | AQ10: 19 | AR10: 314.2652816 | AS10: 0
A11: Retardation factor | B11: R | C11: 1 | AD11: 0 | AF11: 7.009324688 | AG11: 28 | AH11: 196.2610913 | AI11: 0 | AN11: 0 | AP11: 19.84833358 | AQ11: 28 | AR11: 555.7533402 | AS11: 0
A12: 1st order rate cont. | B12: k | C12: 6.93e-11 | E12: d^-1 | AD12: 0 | AF12: 8.177545469 | AG12: 38 | AH12: 310.7467278 | AI12: 0 | AN12: 0 | AP12: 23.15638917 | AQ12: 38 | AR12: 879.9427886 | AS12: 0
B13: Time | C13: 0.25 | E13: years | AD13: 0 | AF13: 9.34576625 | AG13: 35 | AH13: 327.1018188 | AI13: 0 | AN13: 0 | AP13: 26.46444477 | AQ13: 35 | AR13: 926.2555669 | AS13: 0
A14: Depth of slice | B14: depth d | C14: 1 | E14: m | AD14: 0 | AF14: 10.51398703 | AG14: 24 | AH14: 252.3356888 | AI14: 0 | AN14: 0 | AP14: 29.77250037 | AQ14: 24 | AR14: 714.5400088 | AS14: 0
A15: Vert. thickness source | B15: Z | C15: 10 | E15: m | AD15: 0 | AF15: 11.68220781 | AG15: 14 | AH15: 163.5509094 | AI15: 0 | AN15: 0 | AP15: 33.08055596 | AQ15: 14 | AR15: 463.1277835 | AS15: 0
A16: Horizontal width source | B16: Y | C16: 3 | E16: m | AD16: 0 | AF16: 12.85042859 | AG16: 8 | AH16: 102.8034288 | AI16: 0 | AK16: =AJ16+AK17 ->  | AN16: 0 | AP16: 36.38861156 | AQ16: 8 | AR16: 291.1088925 | AS16: 0 | AU16: =AT16+AU17 -> 
A17: x grid increment | B17: dx | C17: 1 | E17: m | AD17: 0 | AF17: 14.01864938 | AG17: 5 | AH17: 70.09324688 | AI17: 0 | AK17: =AJ17 ->  | AN17: 0 | AP17: 39.69666715 | AQ17: 4 | AR17: 158.7866686 | AS17: 0 | AU17: =AT17 -> 
A18: y grid increment | B18: dy | C18: 0.5 | E18: m | AF18: More | AG18: 0 | AP18: More | AQ18: 1
A19: k calculator | B19: enter t½, read k | C19: 10000000000 | D19: =0.693/C19 -> 6.93e-11 | E19: days , perday | AF19: sum | AG19: =SUM(AG5:AG18) -> 200 | AH19: =SUM(AH5:AH17) -> 1641.350198 | AP19: sum | AQ19: =SUM(AQ5:AQ18) -> 200 | AR19: =SUM(AR5:AR17) -> 4608.121445
A20: Retarded velocity | B20: v/R | C20: =C10/C11 -> 0.1 | E20: m/day | AF20: Total Area | AI20: =SUM(AI5:AI17) -> 0 | AP20: Total Area | AS20: =SUM(AS5:AS17) -> 0
A21: Dispersion coefficient | B21: D | C21: =ax*v -> 0.1 | E21: m^2/day | AF21: wt. Mean | AH21: =AH19/AG19 -> 8.206750989 | AP21: wt. Mean | AR21: =AR19/AQ19 -> 23.04060723
A22: Time in days | B22: t | C22: =C13*365 -> 91.25 | D22: =D13*365 -> 0 | E22: days | AF22: Norm Probability total | AJ22: =SUM(AJ5:AJ18) ->  | AP22: Norm Probability total | AT22: =SUM(AT5:AT18) -> 
A23: # of Monte Carlo simulations: | D23: 200 | AF23: min | AG23: =MIN(Y2:Y201) -> 0 | AP23: min | AQ23: =MIN(Z2:Z201) -> 0
AF24: max | AG24: =MAX(Y2:Y201) -> 0 | AP24: max | AQ24: =MAX(Z2:Z201) -> 0
B25: Auto calculated cells - do not change manually | AF25: dif | AG25: =AG24-AG23 -> 0 | AP25: dif | AQ25: =AQ24-AQ23 -> 0
A26: max | B26: =MAX(D34:W54) -> 24.0733412
A27: min | B27: =MIN(D34:W54) -> 6.285828117e-14
A32: Total of terms
A33: y | B33: x--> | C33: 0.001 | D33: =+C33+dx -> 1.001 | E33: =+D33+dx -> 2.001 | F33: 3.001 | G33: 4.001 | H33: 5.001 | I33: 6.001 | J33: 7.001 | K33: 8.001 | L33: 9.001 | M33: 10.001 | N33: 11.001 | O33: 12.001 | P33: 13.001 | Q33: 14.001 | R33: 15.001 | S33: 16.001 | T33: 17.001 | U33: 18.001 | V33: 19.001 | W33: 20.001
A34: =+A35+dy -> 5 | B34: =A34 -> 5 | C34: =IF(Y/2-A34<0,0,IF(d>Z,0,Co*1)) -> 0 | D34: =Co/8*D58*D83*(D107-D131)*(D156-D181) -> 6.285828117e-14 | E34: =Co/8*E58*E83*(E107-E131)*(E156-E181) -> 3.726074956e-07 | F34: 7.163522803e-05 | G34: 0.001001770371 | H34: 0.004811411293 | I34: 0.01332223726 | J34: 0.02652782045 | K34: 0.04238081251 | L34: 0.05766830966 | M34: 0.06921725973 | N34: 0.07488523985 | O34: 0.07405161119 | P34: 0.06755604456 | Q34: 0.05722108675 | R34: 0.04520253583 | S34: 0.0334112447 | T34: 0.02316237153 | U34: 0.01508734295 | V34: 0.009246491339 | W34: 0.0053374971
A35: 4.5 | B35: =A35 -> 4.5 | C35: =IF(Y/2-A35<0,0,IF(d>Z,0,Co*1)) -> 0 | D35: 2.428656747e-10 | E35: =Co/8*E59*E84*(E108-E132)*(E157-E182) -> 2.496275183e-05 | F35: 0.00123538777 | G35: 0.008750060765 | H35: 0.02791044479 | I35: 0.058779183 | J35: 0.09620335013 | K35: 0.132608934 | L35: 0.1608087477 | M35: 0.1759516286 | N35: 0.176414118 | O35: 0.1636781793 | P35: 0.1414365222 | Q35: 0.1143227677 | R35: 0.08669821455 | S35: 0.06181847788 | T35: 0.04150739147 | U35: 0.02627386744 | V35: 0.01569218545 | W35: 0.008848822421
A36: 4 | B36: 4 | C36: 0 | D36: 2.776977834e-07 | E36: =Co/8*E60*E85*(E109-E133)*(E158-E183) -> 0.0009157890768 | F36: 0.0143390152 | G36: 0.05699471315 | H36: 0.1283546849 | I36: 0.2141058427 | J36: 0.2964382811 | K36: 0.3601943782 | L36: 0.3957492218 | M36: 0.3999428999 | N36: 0.3755797379 | O36: 0.3298189993 | P36: 0.2719351951 | Q36: 0.2110624374 | R36: 0.1544797303 | S36: 0.1067487211 | T36: 0.0697012878 | U36: 0.04302849113 | V36: 0.02512389814 | W36: 0.01387913684
A37: 3.5 | B37: 3.5 | C37: 0 | D37: 9.426921001e-05 | E37: =Co/8*E61*E86*(E110-E134)*(E159-E184) -> 0.01853696403 | F37: 0.1127189682 | G37: 0.278329841 | H37: 0.4701354253 | I37: 0.6464904064 | J37: 0.7789241684 | K37: 0.8519973585 | L37: 0.8619418443 | M37: 0.8148670963 | N37: 0.724143925 | O37: 0.6070021916 | P37: 0.4809170296 | Q37: 0.3605719897 | R37: 0.2560161125 | S37: 0.1722172126 | T37: 0.1097791838 | U37: 0.06632062557 | V37: 0.03797372695 | W37: 0.0206075483
A38: 3 | B38: 3 | C38: 0 | D38: 0.009649898186 | E38: =Co/8*E62*E87*(E111-E135)*(E160-E185) -> 0.2094366534 | F38: 0.6056471817 | G38: 1.026751076 | H38: 1.380275773 | I38: 1.626998424 | J38: 1.753476859 | K38: 1.762032119 | L38: 1.667120844 | M38: 1.49252919 | N38: 1.267577057 | O38: 1.022455926 | P38: 0.783696111 | Q38: 0.5708620901 | R38: 0.3951435672 | S38: 0.2598573959 | T38: 0.1623189457 | U38: 0.09628304238 | V38: 0.05422152118 | W38: 0.0289824962
A39: 2.5 | B39: 2.5 | C39: 0 | D39: 0.306224456 | E39: =Co/8*E63*E88*(E112-E136)*(E161-E186) -> 1.345542863 | F39: 2.255174972 | G39: 2.892458911 | H39: 3.276968676 | I39: 3.437651677 | J39: 3.402216571 | K39: 3.20202256 | L39: 2.875222265 | M39: 2.465914258 | N39: 2.020065514 | O39: 1.579949393 | P39: 1.179046302 | Q39: 0.8389219118 | R39: 0.5687392949 | S39: 0.3671334743 | T39: 0.2255266575 | U39: 0.1317669314 | V39: 0.07318927962 | W39: 0.03863162938
A40: 2 | B40: 2 | C40: 0 | D40: 3.177712328 | E40: =Co/8*E64*E89*(E113-E137)*(E162-E187) -> 5.069973594 | F40: 5.944142315 | G40: 6.321459157 | H40: 6.368589373 | I40: 6.156774469 | J40: 5.732897463 | K40: 5.143737442 | L40: 4.442861496 | M40: 3.688955013 | N40: 2.939816956 | O40: 2.245177215 | P40: 1.640900489 | Q40: 1.146215905 | R40: 0.7643983258 | S40: 0.4862061663 | T40: 0.2947154543 | U40: 0.1701181667 | V40: 0.09345236122 | W40: 0.04882980194
A41: 1.5 | B41: 1.5 | C41: 24.80213594 | D41: 12.0463205 | E41: =Co/8*E65*E90*(E114-E138)*(E163-E188) -> 11.80954486 | F41: 11.45915392 | G41: 10.96397649 | H41: 10.29990451 | I41: 9.461443584 | J41: 8.466392646 | K41: 7.354724973 | L41: 6.183257504 | M41: 5.017056225 | N41: 3.919204161 | O41: 2.941257983 | P41: 2.116638553 | Q41: 1.458283287 | R41: 0.9605508591 | S41: 0.6041842128 | T41: 0.3625348806 | U41: 0.2073410366 | V41: 0.1129412582 | W41: 0.05855631149
A42: 1 | B42: 1 | C42: 24.80213594 | D42: 20.91492839 | E42: =Co/8*E66*E91*(E115-E139)*(E164-E189) -> 18.54824989 | F42: 16.96222564 | G42: 15.56599744 | H42: 14.1538741 | I42: 12.65623887 | J42: 11.06930618 | K42: 9.42828169 | L42: 7.791680819 | M42: 6.22758486 | N42: 4.800479201 | O42: 3.560212266 | P42: 2.535066897 | Q42: 1.730015228 | R42: 1.12978131 | S42: 0.7051092765 | T42: 0.420099463 | U42: 0.2387082681 | V42: 0.1292550329 | W42: 0.06664797083
A43: =+A44+dy -> 0.5 | B43: 0.5 | C43: 24.80213594 | D43: 23.78632227 | E43: =Co/8*E67*E92*(E116-E140)*(E165-E190) -> 22.25505982 | F43: 20.55288189 | G43: 18.77457889 | H43: 16.90786462 | I43: 14.95377134 | J43: 12.93765568 | K43: 10.90837192 | L43: 8.931623538 | M43: 7.079046456 | N43: 5.415701138 | O43: 3.989195674 | P43: 2.823100669 | Q43: 1.915880516 | R43: 1.24485236 | S43: 0.7733593188 | T43: 0.4588296769 | U43: 0.2597132488 | V43: 0.1401317933 | W43: 0.07202096338
A44: 0 | B44: 0 | C44: 24.80213594 | D44: 24.0733412 | E44: =Co/8*E68*E93*(E117-E141)*(E166-E191) -> 23.20026634 | F44: 21.7094841 | G44: 19.89194021 | H44: 17.89493775 | I44: 15.78568821 | J44: 13.61579618 | K44: 11.44502513 | L44: 9.343879633 | M44: 7.385986502 | N44: 5.636726084 | O44: 4.142792252 | P44: 2.925895692 | Q44: 1.982009379 | R44: 1.285675523 | S44: 0.7975069969 | T44: 0.4724986265 | U44: 0.2671092405 | V44: 0.143953287 | W44: 0.07390493475
A45: =+A44+dy -> 0.5 | B45: =A45*-1 -> -0.5 | C45: 24.80213594 | D45: 23.78632227 | E45: =Co/8*E69*E94*(E118-E142)*(E167-E192) -> 22.25505982 | F45: 20.55288189 | G45: 18.77457889 | H45: 16.90786462 | I45: 14.95377134 | J45: 12.93765568 | K45: 10.90837192 | L45: 8.931623538 | M45: 7.079046456 | N45: 5.415701138 | O45: 3.989195674 | P45: 2.823100669 | Q45: 1.915880516 | R45: 1.24485236 | S45: 0.7733593188 | T45: 0.4588296769 | U45: 0.2597132488 | V45: 0.1401317933 | W45: 0.07202096338
A46: =+A45+dy -> 1 | B46: =A46*-1 -> -1 | C46: 24.80213594 | D46: 20.91492839 | E46: =Co/8*E70*E95*(E119-E143)*(E168-E193) -> 18.54824989 | F46: 16.96222564 | G46: 15.56599744 | H46: 14.1538741 | I46: 12.65623887 | J46: 11.06930618 | K46: 9.42828169 | L46: 7.791680819 | M46: 6.22758486 | N46: 4.800479201 | O46: 3.560212266 | P46: 2.535066897 | Q46: 1.730015228 | R46: 1.12978131 | S46: 0.7051092765 | T46: 0.420099463 | U46: 0.2387082681 | V46: 0.1292550329 | W46: 0.06664797083
A47: 1.5 | B47: -1.5 | C47: 24.80213594 | D47: 12.0463205 | E47: =Co/8*E71*E96*(E120-E144)*(E169-E194) -> 11.80954486 | F47: 11.45915392 | G47: 10.96397649 | H47: 10.29990451 | I47: 9.461443584 | J47: 8.466392646 | K47: 7.354724973 | L47: 6.183257504 | M47: 5.017056225 | N47: 3.919204161 | O47: 2.941257983 | P47: 2.116638553 | Q47: 1.458283287 | R47: 0.9605508591 | S47: 0.6041842128 | T47: 0.3625348806 | U47: 0.2073410366 | V47: 0.1129412582 | W47: 0.05855631149
A48: 2 | B48: -2 | C48: 0 | D48: 3.177712328 | E48: =Co/8*E72*E97*(E121-E145)*(E170-E195) -> 5.069973594 | F48: 5.944142315 | G48: 6.321459157 | H48: 6.368589373 | I48: 6.156774469 | J48: 5.732897463 | K48: 5.143737442 | L48: 4.442861496 | M48: 3.688955013 | N48: 2.939816956 | O48: 2.245177215 | P48: 1.640900489 | Q48: 1.146215905 | R48: 0.7643983258 | S48: 0.4862061663 | T48: 0.2947154543 | U48: 0.1701181667 | V48: 0.09345236122 | W48: 0.04882980194
A49: 2.5 | B49: -2.5 | C49: 0 | D49: 0.306224456 | E49: =Co/8*E73*E98*(E122-E146)*(E171-E196) -> 1.345542863 | F49: 2.255174972 | G49: 2.892458911 | H49: 3.276968676 | I49: 3.437651677 | J49: 3.402216571 | K49: 3.20202256 | L49: 2.875222265 | M49: 2.465914258 | N49: 2.020065514 | O49: 1.579949393 | P49: 1.179046302 | Q49: 0.8389219118 | R49: 0.5687392949 | S49: 0.3671334743 | T49: 0.2255266575 | U49: 0.1317669314 | V49: 0.07318927962 | W49: 0.03863162938
A50: 3 | B50: -3 | C50: 0 | D50: 0.009649898186 | E50: =Co/8*E74*E99*(E123-E147)*(E172-E197) -> 0.2094366534 | F50: 0.6056471817 | G50: 1.026751076 | H50: 1.380275773 | I50: 1.626998424 | J50: 1.753476859 | K50: 1.762032119 | L50: 1.667120844 | M50: 1.49252919 | N50: 1.267577057 | O50: 1.022455926 | P50: 0.783696111 | Q50: 0.5708620901 | R50: 0.3951435672 | S50: 0.2598573959 | T50: 0.1623189457 | U50: 0.09628304238 | V50: 0.05422152118 | W50: 0.0289824962
A51: 3.5 | B51: -3.5 | C51: 0 | D51: 9.426921001e-05 | E51: =Co/8*E75*E100*(E124-E148)*(E173-E198) -> 0.01853696403 | F51: 0.1127189682 | G51: 0.278329841 | H51: 0.4701354253 | I51: 0.6464904064 | J51: 0.7789241684 | K51: 0.8519973585 | L51: 0.8619418443 | M51: 0.8148670963 | N51: 0.724143925 | O51: 0.6070021916 | P51: 0.4809170296 | Q51: 0.3605719897 | R51: 0.2560161125 | S51: 0.1722172126 | T51: 0.1097791838 | U51: 0.06632062557 | V51: 0.03797372695 | W51: 0.0206075483
A52: 4 | B52: -4 | C52: 0 | D52: 2.776977834e-07 | E52: =Co/8*E76*E101*(E125-E149)*(E174-E199) -> 0.0009157890768 | F52: 0.0143390152 | G52: 0.05699471315 | H52: 0.1283546849 | I52: 0.2141058427 | J52: 0.2964382811 | K52: 0.3601943782 | L52: 0.3957492218 | M52: 0.3999428999 | N52: 0.3755797379 | O52: 0.3298189993 | P52: 0.2719351951 | Q52: 0.2110624374 | R52: 0.1544797303 | S52: 0.1067487211 | T52: 0.0697012878 | U52: 0.04302849113 | V52: 0.02512389814 | W52: 0.01387913684
A53: 4.5 | B53: -4.5 | C53: 0 | D53: 2.428656747e-10 | E53: =Co/8*E77*E102*(E126-E150)*(E175-E200) -> 2.496275183e-05 | F53: 0.00123538777 | G53: 0.008750060765 | H53: 0.02791044479 | I53: 0.058779183 | J53: 0.09620335013 | K53: 0.132608934 | L53: 0.1608087477 | M53: 0.1759516286 | N53: 0.176414118 | O53: 0.1636781793 | P53: 0.1414365222 | Q53: 0.1143227677 | R53: 0.08669821455 | S53: 0.06181847788 | T53: =Co/8*T77*T102*(T126-T150)*(T175-T200) -> 0.04150739147 | U53: =Co/8*U77*U102*(U126-U150)*(U175-U200) -> 0.02627386744 | V53: =Co/8*V77*V102*(V126-V150)*(V175-V200) -> 0.01569218545 | W53: =Co/8*W77*W102*(W126-W150)*(W175-W200) -> 0.008848822421 | AC53: Histogram input: | AF53: Histogram output: | AH53: =AA1 -> 1, 1 | AM53: Histogram input: | AP53: Histogram output: | AR53: =AB1 -> 1, 1
A54: 5 | B54: -5 | C54: 0 | D54: 6.285828117e-14 | E54: =Co/8*E78*E103*(E127-E151)*(E176-E201) -> 3.726074956e-07 | F54: 7.163522803e-05 | G54: 0.001001770371 | H54: 0.004811411293 | I54: 0.01332223726 | J54: 0.02652782045 | K54: 0.04238081251 | L54: 0.05766830966 | M54: 0.06921725973 | N54: 0.07488523985 | O54: 0.07405161119 | P54: 0.06755604456 | Q54: 0.05722108675 | R54: 0.04520253583 | S54: 0.0334112447 | T54: 0.02316237153 | U54: 0.01508734295 | V54: 0.009246491339 | W54: 0.0053374971 | AD54: Bin Range | AF54: Bin | AG54: Frequency | AH54: Wt. Mean | AI54: Area | AJ54: Prob | AK54: Cummul. Prob. | AN54: Bin Range | AP54: Bin | AQ54: Frequency | AR54: Wt. Mean | AS54: Area | AT54: Prob | AU54: Cummul. Prob.
AD55: =AG73 -> 0 | AF55: 8.432712586e-11 | AG55: 1 | AH55: =AG55*AF55 -> 8.432712586e-11 | AI55: =AG55*AG$75/12 -> 0 | AJ55: =AI55/AI$70 ->  | AK55: =AJ55+AK56 ->  | AN55: =AQ73 -> 0 | AP55: 8.432712586e-11 | AQ55: 1 | AR55: =AQ55*AP55 -> 8.432712586e-11 | AS55: =AQ55*AQ$75/12 -> 0 | AT55: =AS55/AS$70 ->  | AU55: =AT55+AU56 -> 
A56: exp | AD56: =AD55+AG$75/12 -> 0 | AF56: 3.308055596 | AG56: 3 | AH56: =AG56*AF56 -> 9.924166789 | AI56: =AG56*AG$75/12 -> 0 | AJ56: =AI56/AI$70 ->  | AN56: =AN55+AQ$75/12 -> 0 | AP56: 3.308055596 | AQ56: 3 | AR56: =AQ56*AP56 -> 9.924166789 | AS56: =AQ56*AQ$75/12 -> 0 | AT56: =AS56/AS$70 -> 
A57: y | B57: x--> | C57: 0.001 | D57: =+C57+dx -> 1.001 | E57: =+D57+dx -> 2.001 | F57: 3.001 | G57: 4.001 | H57: 5.001 | I57: 6.001 | J57: 7.001 | K57: 8.001 | L57: 9.001 | M57: 10.001 | N57: 11.001 | O57: 12.001 | P57: 13.001 | Q57: 14.001 | R57: 15.001 | S57: 16.001 | T57: 17.001 | U57: 18.001 | V57: 19.001 | W57: 20.001 | AD57: =AD56+AG$75/12 -> 0 | AF57: 6.616111192 | AG57: 2 | AH57: 13.23222238 | AI57: 0 | AN57: =AN56+AQ$75/12 -> 0 | AP57: 6.616111192 | AQ57: 2 | AR57: 13.23222238 | AS57: 0
A58: =+A59+dy -> 5 | D58: =EXP(D$57/(2*ax)*(1-(1+4*k*ax/(v))^0.5)) -> 0.9999999993 | E58: =EXP(E$57/(2*ax)*(1-(1+4*k*ax/(v))^0.5)) -> 0.9999999986 | F58: 0.9999999979 | G58: 0.9999999972 | H58: 0.9999999965 | I58: 0.9999999958 | J58: 0.9999999951 | K58: 0.9999999945 | L58: 0.9999999938 | M58: 0.9999999931 | N58: 0.9999999924 | O58: 0.9999999917 | P58: 0.999999991 | Q58: 0.9999999903 | R58: 0.9999999896 | S58: 0.9999999889 | T58: 0.9999999882 | U58: 0.9999999875 | V58: 0.9999999868 | W58: 0.9999999861 | AD58: 0 | AF58: 9.924166788 | AG58: 7 | AH58: 69.46916752 | AI58: 0 | AN58: 0 | AP58: 9.924166788 | AQ58: 7 | AR58: 69.46916752 | AS58: 0
A59: 4.5 | D59: 0.9999999993 | E59: =EXP(E$57/(2*ax)*(1-(1+4*k*ax/(v))^0.5)) -> 0.9999999986 | F59: 0.9999999979 | G59: 0.9999999972 | H59: 0.9999999965 | I59: 0.9999999958 | J59: 0.9999999951 | K59: 0.9999999945 | L59: 0.9999999938 | M59: 0.9999999931 | N59: 0.9999999924 | O59: 0.9999999917 | P59: 0.999999991 | Q59: 0.9999999903 | R59: 0.9999999896 | S59: 0.9999999889 | T59: 0.9999999882 | U59: 0.9999999875 | V59: 0.9999999868 | W59: 0.9999999861 | AD59: 0 | AF59: 13.23222238 | AG59: 16 | AH59: 211.7155582 | AI59: 0 | AN59: 0 | AP59: 13.23222238 | AQ59: 16 | AR59: 211.7155582 | AS59: 0
A60: 4 | D60: 0.9999999993 | E60: 0.9999999986 | F60: 0.9999999979 | G60: 0.9999999972 | H60: 0.9999999965 | I60: 0.9999999958 | J60: 0.9999999951 | K60: 0.9999999945 | L60: 0.9999999938 | M60: 0.9999999931 | N60: 0.9999999924 | O60: 0.9999999917 | P60: 0.999999991 | Q60: 0.9999999903 | R60: 0.9999999896 | S60: 0.9999999889 | T60: 0.9999999882 | U60: 0.9999999875 | V60: 0.9999999868 | W60: 0.9999999861 | AD60: 0 | AF60: 16.54027798 | AG60: 19 | AH60: 314.2652816 | AI60: 0 | AN60: 0 | AP60: 16.54027798 | AQ60: 19 | AR60: 314.2652816 | AS60: 0
A61: 3.5 | D61: 0.9999999993 | E61: 0.9999999986 | F61: 0.9999999979 | G61: 0.9999999972 | H61: 0.9999999965 | I61: 0.9999999958 | J61: 0.9999999951 | K61: 0.9999999945 | L61: 0.9999999938 | M61: 0.9999999931 | N61: 0.9999999924 | O61: 0.9999999917 | P61: 0.999999991 | Q61: 0.9999999903 | R61: 0.9999999896 | S61: 0.9999999889 | T61: 0.9999999882 | U61: 0.9999999875 | V61: 0.9999999868 | W61: 0.9999999861 | AD61: 0 | AF61: 19.84833358 | AG61: 28 | AH61: 555.7533402 | AI61: 0 | AN61: 0 | AP61: 19.84833358 | AQ61: 28 | AR61: 555.7533402 | AS61: 0
A62: 3 | D62: 0.9999999993 | E62: 0.9999999986 | F62: 0.9999999979 | G62: 0.9999999972 | H62: 0.9999999965 | I62: 0.9999999958 | J62: 0.9999999951 | K62: 0.9999999945 | L62: 0.9999999938 | M62: 0.9999999931 | N62: 0.9999999924 | O62: 0.9999999917 | P62: 0.999999991 | Q62: 0.9999999903 | R62: 0.9999999896 | S62: 0.9999999889 | T62: 0.9999999882 | U62: 0.9999999875 | V62: 0.9999999868 | W62: 0.9999999861 | AD62: 0 | AF62: 23.15638917 | AG62: 38 | AH62: 879.9427886 | AI62: 0 | AN62: 0 | AP62: 23.15638917 | AQ62: 38 | AR62: 879.9427886 | AS62: 0
A63: 2.5 | D63: 0.9999999993 | E63: 0.9999999986 | F63: 0.9999999979 | G63: 0.9999999972 | H63: 0.9999999965 | I63: 0.9999999958 | J63: 0.9999999951 | K63: 0.9999999945 | L63: 0.9999999938 | M63: 0.9999999931 | N63: 0.9999999924 | O63: 0.9999999917 | P63: 0.999999991 | Q63: 0.9999999903 | R63: 0.9999999896 | S63: 0.9999999889 | T63: 0.9999999882 | U63: 0.9999999875 | V63: 0.9999999868 | W63: 0.9999999861 | AD63: 0 | AF63: 26.46444477 | AG63: 35 | AH63: 926.2555669 | AI63: 0 | AN63: 0 | AP63: 26.46444477 | AQ63: 35 | AR63: 926.2555669 | AS63: 0
A64: 2 | D64: 0.9999999993 | E64: 0.9999999986 | F64: 0.9999999979 | G64: 0.9999999972 | H64: 0.9999999965 | I64: 0.9999999958 | J64: 0.9999999951 | K64: 0.9999999945 | L64: 0.9999999938 | M64: 0.9999999931 | N64: 0.9999999924 | O64: 0.9999999917 | P64: 0.999999991 | Q64: 0.9999999903 | R64: 0.9999999896 | S64: 0.9999999889 | T64: 0.9999999882 | U64: 0.9999999875 | V64: 0.9999999868 | W64: 0.9999999861 | AD64: 0 | AF64: 29.77250037 | AG64: 24 | AH64: 714.5400088 | AI64: 0 | AN64: 0 | AP64: 29.77250037 | AQ64: 24 | AR64: 714.5400088 | AS64: 0
A65: 1.5 | D65: 0.9999999993 | E65: 0.9999999986 | F65: 0.9999999979 | G65: 0.9999999972 | H65: 0.9999999965 | I65: 0.9999999958 | J65: 0.9999999951 | K65: 0.9999999945 | L65: 0.9999999938 | M65: 0.9999999931 | N65: 0.9999999924 | O65: 0.9999999917 | P65: 0.999999991 | Q65: 0.9999999903 | R65: 0.9999999896 | S65: 0.9999999889 | T65: 0.9999999882 | U65: 0.9999999875 | V65: 0.9999999868 | W65: 0.9999999861 | AD65: 0 | AF65: 33.08055596 | AG65: 14 | AH65: 463.1277835 | AI65: 0 | AN65: 0 | AP65: 33.08055596 | AQ65: 14 | AR65: 463.1277835 | AS65: 0
A66: 1 | D66: 0.9999999993 | E66: 0.9999999986 | F66: 0.9999999979 | G66: 0.9999999972 | H66: 0.9999999965 | I66: 0.9999999958 | J66: 0.9999999951 | K66: 0.9999999945 | L66: 0.9999999938 | M66: 0.9999999931 | N66: 0.9999999924 | O66: 0.9999999917 | P66: 0.999999991 | Q66: 0.9999999903 | R66: 0.9999999896 | S66: 0.9999999889 | T66: 0.9999999882 | U66: 0.9999999875 | V66: 0.9999999868 | W66: 0.9999999861 | AD66: 0 | AF66: 36.38861156 | AG66: 8 | AH66: 291.1088925 | AI66: 0 | AK66: =AJ66+AK67 ->  | AN66: 0 | AP66: 36.38861156 | AQ66: 8 | AR66: 291.1088925 | AS66: 0 | AU66: =AT66+AU67 -> 
A67: =+A68+dy -> 0.5 | D67: 0.9999999993 | E67: 0.9999999986 | F67: 0.9999999979 | G67: 0.9999999972 | H67: 0.9999999965 | I67: 0.9999999958 | J67: 0.9999999951 | K67: 0.9999999945 | L67: 0.9999999938 | M67: 0.9999999931 | N67: 0.9999999924 | O67: 0.9999999917 | P67: 0.999999991 | Q67: 0.9999999903 | R67: 0.9999999896 | S67: 0.9999999889 | T67: 0.9999999882 | U67: 0.9999999875 | V67: 0.9999999868 | W67: 0.9999999861 | AD67: 0 | AF67: 39.69666715 | AG67: 4 | AH67: 158.7866686 | AI67: 0 | AK67: =AJ67 ->  | AN67: 0 | AP67: 39.69666715 | AQ67: 4 | AR67: 158.7866686 | AS67: 0 | AU67: =AT67 -> 
A68: 0 | D68: 0.9999999993 | E68: 0.9999999986 | F68: 0.9999999979 | G68: 0.9999999972 | H68: 0.9999999965 | I68: 0.9999999958 | J68: 0.9999999951 | K68: 0.9999999945 | L68: 0.9999999938 | M68: 0.9999999931 | N68: 0.9999999924 | O68: 0.9999999917 | P68: 0.999999991 | Q68: 0.9999999903 | R68: 0.9999999896 | S68: 0.9999999889 | T68: 0.9999999882 | U68: 0.9999999875 | V68: 0.9999999868 | W68: 0.9999999861 | AF68: More | AG68: 1 | AP68: More | AQ68: 1
A69: =+A68+dy -> 0.5 | D69: 0.9999999993 | E69: 0.9999999986 | F69: 0.9999999979 | G69: 0.9999999972 | H69: 0.9999999965 | I69: 0.9999999958 | J69: 0.9999999951 | K69: 0.9999999945 | L69: 0.9999999938 | M69: 0.9999999931 | N69: 0.9999999924 | O69: 0.9999999917 | P69: 0.999999991 | Q69: 0.9999999903 | R69: 0.9999999896 | S69: 0.9999999889 | T69: 0.9999999882 | U69: 0.9999999875 | V69: 0.9999999868 | W69: 0.9999999861 | AF69: sum | AG69: =SUM(AG55:AG68) -> 200 | AH69: =SUM(AH55:AH67) -> 4608.121445 | AP69: sum | AQ69: =SUM(AQ55:AQ68) -> 200 | AR69: =SUM(AR55:AR67) -> 4608.121445
A70: =+A69+dy -> 1 | D70: 0.9999999993 | E70: 0.9999999986 | F70: 0.9999999979 | G70: 0.9999999972 | H70: 0.9999999965 | I70: 0.9999999958 | J70: 0.9999999951 | K70: 0.9999999945 | L70: 0.9999999938 | M70: 0.9999999931 | N70: 0.9999999924 | O70: 0.9999999917 | P70: 0.999999991 | Q70: 0.9999999903 | R70: 0.9999999896 | S70: 0.9999999889 | T70: 0.9999999882 | U70: 0.9999999875 | V70: 0.9999999868 | W70: 0.9999999861 | AF70: Total Area | AI70: =SUM(AI55:AI67) -> 0 | AP70: Total Area | AS70: =SUM(AS55:AS67) -> 0
A71: 1.5 | D71: 0.9999999993 | E71: 0.9999999986 | F71: 0.9999999979 | G71: 0.9999999972 | H71: 0.9999999965 | I71: 0.9999999958 | J71: 0.9999999951 | K71: 0.9999999945 | L71: 0.9999999938 | M71: 0.9999999931 | N71: 0.9999999924 | O71: 0.9999999917 | P71: 0.999999991 | Q71: 0.9999999903 | R71: 0.9999999896 | S71: 0.9999999889 | T71: 0.9999999882 | U71: 0.9999999875 | V71: 0.9999999868 | W71: 0.9999999861 | AF71: wt. Mean | AH71: =AH69/AG69 -> 23.04060723 | AP71: wt. Mean | AR71: =AR69/AQ69 -> 23.04060723
A72: 2 | D72: 0.9999999993 | E72: 0.9999999986 | F72: 0.9999999979 | G72: 0.9999999972 | H72: 0.9999999965 | I72: =EXP(I$57/(2*ax)*(1-(1+4*k*ax/(v))^0.5)) -> 0.9999999958 | J72: 0.9999999951 | K72: 0.9999999945 | L72: 0.9999999938 | M72: 0.9999999931 | N72: 0.9999999924 | O72: 0.9999999917 | P72: 0.999999991 | Q72: 0.9999999903 | R72: 0.9999999896 | S72: 0.9999999889 | T72: 0.9999999882 | U72: 0.9999999875 | V72: 0.9999999868 | W72: 0.9999999861 | AF72: Norm Probability total | AJ72: =SUM(AJ55:AJ68) ->  | AP72: Norm Probability total | AT72: =SUM(AT55:AT68) -> 
A73: 2.5 | D73: 0.9999999993 | E73: 0.9999999986 | F73: 0.9999999979 | G73: 0.9999999972 | H73: 0.9999999965 | I73: 0.9999999958 | J73: 0.9999999951 | K73: 0.9999999945 | L73: 0.9999999938 | M73: 0.9999999931 | N73: 0.9999999924 | O73: 0.9999999917 | P73: 0.999999991 | Q73: 0.9999999903 | R73: 0.9999999896 | S73: 0.9999999889 | T73: 0.9999999882 | U73: 0.9999999875 | V73: 0.9999999868 | W73: 0.9999999861 | AF73: min | AG73: =MIN(AA2:AA201) -> 0 | AP73: min | AQ73: =MIN(AB2:AB201) -> 0
A74: 3 | D74: 0.9999999993 | E74: 0.9999999986 | F74: 0.9999999979 | G74: 0.9999999972 | H74: 0.9999999965 | I74: 0.9999999958 | J74: 0.9999999951 | K74: 0.9999999945 | L74: 0.9999999938 | M74: 0.9999999931 | N74: 0.9999999924 | O74: 0.9999999917 | P74: 0.999999991 | Q74: 0.9999999903 | R74: 0.9999999896 | S74: 0.9999999889 | T74: 0.9999999882 | U74: 0.9999999875 | V74: 0.9999999868 | W74: 0.9999999861 | AF74: max | AG74: =MAX(AA2:AA201) -> 0 | AP74: max | AQ74: =MAX(AB2:AB201) -> 0
A75: 3.5 | D75: 0.9999999993 | E75: 0.9999999986 | F75: 0.9999999979 | G75: 0.9999999972 | H75: 0.9999999965 | I75: 0.9999999958 | J75: 0.9999999951 | K75: 0.9999999945 | L75: 0.9999999938 | M75: 0.9999999931 | N75: 0.9999999924 | O75: 0.9999999917 | P75: 0.999999991 | Q75: 0.9999999903 | R75: 0.9999999896 | S75: 0.9999999889 | T75: 0.9999999882 | U75: 0.9999999875 | V75: 0.9999999868 | W75: 0.9999999861 | AF75: dif | AG75: =AG74-AG73 -> 0 | AP75: dif | AQ75: =AQ74-AQ73 -> 0
A76: 4 | D76: 0.9999999993 | E76: 0.9999999986 | F76: 0.9999999979 | G76: 0.9999999972 | H76: 0.9999999965 | I76: 0.9999999958 | J76: 0.9999999951 | K76: 0.9999999945 | L76: 0.9999999938 | M76: 0.9999999931 | N76: 0.9999999924 | O76: 0.9999999917 | P76: 0.999999991 | Q76: 0.9999999903 | R76: 0.9999999896 | S76: 0.9999999889 | T76: 0.9999999882 | U76: 0.9999999875 | V76: 0.9999999868 | W76: 0.9999999861
A77: 4.5 | D77: 0.9999999993 | E77: 0.9999999986 | F77: 0.9999999979 | G77: 0.9999999972 | H77: 0.9999999965 | I77: 0.9999999958 | J77: 0.9999999951 | K77: 0.9999999945 | L77: 0.9999999938 | M77: 0.9999999931 | N77: 0.9999999924 | O77: 0.9999999917 | P77: 0.999999991 | Q77: 0.9999999903 | R77: 0.9999999896 | S77: 0.9999999889 | T77: 0.9999999882 | U77: 0.9999999875 | V77: 0.9999999868 | W77: 0.9999999861
A78: 5 | D78: 0.9999999993 | E78: 0.9999999986 | F78: 0.9999999979 | G78: 0.9999999972 | H78: 0.9999999965 | I78: 0.9999999958 | J78: 0.9999999951 | K78: 0.9999999945 | L78: 0.9999999938 | M78: 0.9999999931 | N78: 0.9999999924 | O78: 0.9999999917 | P78: 0.999999991 | Q78: 0.9999999903 | R78: 0.9999999896 | S78: 0.9999999889 | T78: 0.9999999882 | U78: 0.9999999875 | V78: 0.9999999868 | W78: 0.9999999861
D80: =1+ERF(ABS((D$82-v*t*(1+4*k*ax/v)^0.5)/(2*(ax*v*t)^0.5))) -> 1.942787595 | E80: =1+ERF(ABS((D$82-v*t*(1+4*k*ax/v)^0.5)/(2*(ax*v*t)^0.5))) -> 1.942787595
A81: erfc
A82: y | B82: x--> | C82: 0.001 | D82: =+C82+dx -> 1.001 | E82: =+D82+dx -> 2.001 | F82: 3.001 | G82: 4.001 | H82: 5.001 | I82: 6.001 | J82: 7.001 | K82: 8.001 | L82: 9.001 | M82: 10.001 | N82: 11.001 | O82: 12.001 | P82: 13.001 | Q82: 14.001 | R82: 15.001 | S82: 16.001 | T82: 17.001 | U82: 18.001 | V82: 19.001 | W82: 20.001
A83: =+A84+dy -> 5 | D83: =IF((D$82-v*t*(1+4*k*ax/v)^0.5)/(2*(ax*v*t)^0.5)>27,0,IF((D$82-v*t*(1+4*k*ax/v)^0.5)/(2*(ax*v*t)^0.5)>0,ERFC((D$82-v*t*(1+4*k*ax/v)^0.5)/(2*(ax*v*t)^0.5)),IF((D$82-v*t*(1+4*k*ax/v)^0.5)/(2*(ax*v*t)^0.5)<-27,2,1+ERF(ABS((D$82-v*t*(1+4*k*ax/v)^0.5)/(2*(ax*v*t)^0.5)))))) -> 1.942787595 | E83: 1.904605292 | F83: 1.848290705 | G83: 1.769642196 | H83: 1.66563316 | I83: 1.535387636 | J83: 1.380945489 | K83: 1.207533049 | L83: 1.023156311 | M83: 0.8375283049 | N83: =IF((N$82-v*t*(1+4*k*ax/v)^0.5)/(2*(ax*v*t)^0.5)>27,0,IF((N$82-v*t*(1+4*k*ax/v)^0.5)/(2*(ax*v*t)^0.5)>0,ERFC((N$82-v*t*(1+4*k*ax/v)^0.5)/(2*(ax*v*t)^0.5)),IF((N$82-v*t*(1+4*k*ax/v)^0.5)/(2*(ax*v*t)^0.5)<-27,2,1+ERF(ABS((N$82-v*t*(1+4*k*ax/v)^0.5)/(2*(ax*v*t)^0.5)))))) -> 0.6605612699 | O83: 0.5008069094 | P83: 0.364246604 | Q83: 0.253709634 | R83: 0.1689865366 | S83: 0.1074961632 | T83: 0.06523676765 | U83: 0.03773566807 | V83: 0.02078888736 | W83: 0.0109002955
A84: 4.5 | D84: 1.942787595 | E84: 1.904605292 | F84: 1.848290705 | G84: 1.769642196 | H84: 1.66563316 | I84: 1.535387636 | J84: 1.380945489 | K84: 1.207533049 | L84: 1.023156311 | M84: 0.8375283049 | N84: 0.6605612699 | O84: 0.5008069094 | P84: 0.364246604 | Q84: 0.253709634 | R84: 0.1689865366 | S84: 0.1074961632 | T84: 0.06523676765 | U84: 0.03773566807 | V84: 0.02078888736 | W84: 0.0109002955
A85: 4 | D85: 1.942787595 | E85: 1.904605292 | F85: 1.848290705 | G85: 1.769642196 | H85: 1.66563316 | I85: 1.535387636 | J85: 1.380945489 | K85: 1.207533049 | L85: 1.023156311 | M85: 0.8375283049 | N85: 0.6605612699 | O85: 0.5008069094 | P85: 0.364246604 | Q85: 0.253709634 | R85: 0.1689865366 | S85: 0.1074961632 | T85: 0.06523676765 | U85: 0.03773566807 | V85: 0.02078888736 | W85: 0.0109002955
A86: 3.5 | D86: 1.942787595 | E86: 1.904605292 | F86: 1.848290705 | G86: 1.769642196 | H86: 1.66563316 | I86: 1.535387636 | J86: 1.380945489 | K86: 1.207533049 | L86: 1.023156311 | M86: 0.8375283049 | N86: 0.6605612699 | O86: 0.5008069094 | P86: 0.364246604 | Q86: 0.253709634 | R86: 0.1689865366 | S86: 0.1074961632 | T86: 0.06523676765 | U86: 0.03773566807 | V86: 0.02078888736 | W86: 0.0109002955
A87: 3 | D87: 1.942787595 | E87: 1.904605292 | F87: 1.848290705 | G87: 1.769642196 | H87: 1.66563316 | I87: 1.535387636 | J87: 1.380945489 | K87: 1.207533049 | L87: 1.023156311 | M87: 0.8375283049 | N87: 0.6605612699 | O87: 0.5008069094 | P87: 0.364246604 | Q87: 0.253709634 | R87: 0.1689865366 | S87: 0.1074961632 | T87: 0.06523676765 | U87: 0.03773566807 | V87: 0.02078888736 | W87: 0.0109002955
A88: 2.5 | D88: 1.942787595 | E88: 1.904605292 | F88: 1.848290705 | G88: 1.769642196 | H88: 1.66563316 | I88: 1.535387636 | J88: 1.380945489 | K88: 1.207533049 | L88: 1.023156311 | M88: 0.8375283049 | N88: 0.6605612699 | O88: 0.5008069094 | P88: 0.364246604 | Q88: 0.253709634 | R88: 0.1689865366 | S88: 0.1074961632 | T88: 0.06523676765 | U88: 0.03773566807 | V88: 0.02078888736 | W88: 0.0109002955
A89: 2 | D89: 1.942787595 | E89: 1.904605292 | F89: 1.848290705 | G89: 1.769642196 | H89: 1.66563316 | I89: 1.535387636 | J89: 1.380945489 | K89: 1.207533049 | L89: 1.023156311 | M89: 0.8375283049 | N89: 0.6605612699 | O89: 0.5008069094 | P89: 0.364246604 | Q89: 0.253709634 | R89: 0.1689865366 | S89: 0.1074961632 | T89: 0.06523676765 | U89: 0.03773566807 | V89: 0.02078888736 | W89: 0.0109002955
A90: 1.5 | D90: 1.942787595 | E90: 1.904605292 | F90: 1.848290705 | G90: 1.769642196 | H90: 1.66563316 | I90: 1.535387636 | J90: 1.380945489 | K90: 1.207533049 | L90: 1.023156311 | M90: 0.8375283049 | N90: 0.6605612699 | O90: 0.5008069094 | P90: 0.364246604 | Q90: 0.253709634 | R90: 0.1689865366 | S90: 0.1074961632 | T90: 0.06523676765 | U90: 0.03773566807 | V90: 0.02078888736 | W90: 0.0109002955
A91: 1 | D91: 1.942787595 | E91: 1.904605292 | F91: 1.848290705 | G91: 1.769642196 | H91: 1.66563316 | I91: 1.535387636 | J91: 1.380945489 | K91: 1.207533049 | L91: 1.023156311 | M91: 0.8375283049 | N91: 0.6605612699 | O91: 0.5008069094 | P91: 0.364246604 | Q91: 0.253709634 | R91: 0.1689865366 | S91: 0.1074961632 | T91: 0.06523676765 | U91: 0.03773566807 | V91: 0.02078888736 | W91: 0.0109002955
A92: =+A93+dy -> 0.5 | D92: 1.942787595 | E92: 1.904605292 | F92: 1.848290705 | G92: 1.769642196 | H92: 1.66563316 | I92: 1.535387636 | J92: 1.380945489 | K92: 1.207533049 | L92: 1.023156311 | M92: 0.8375283049 | N92: 0.6605612699 | O92: 0.5008069094 | P92: 0.364246604 | Q92: 0.253709634 | R92: 0.1689865366 | S92: 0.1074961632 | T92: 0.06523676765 | U92: 0.03773566807 | V92: 0.02078888736 | W92: 0.0109002955
A93: 0 | D93: =IF((D$82-v*t*(1+4*k*ax/v)^0.5)/(2*(ax*v*t)^0.5)>27,0,IF((D$82-v*t*(1+4*k*ax/v)^0.5)/(2*(ax*v*t)^0.5)>0,ERFC((D$82-v*t*(1+4*k*ax/v)^0.5)/(2*(ax*v*t)^0.5)),IF((D$82-v*t*(1+4*k*ax/v)^0.5)/(2*(ax*v*t)^0.5)<-27,2,1+ERF(ABS((D$82-v*t*(1+4*k*ax/v)^0.5)/(2*(ax*v*t)^0.5)))))) -> 1.942787595 | E93: 1.904605292 | F93: 1.848290705 | G93: 1.769642196 | H93: 1.66563316 | I93: 1.535387636 | J93: 1.380945489 | K93: 1.207533049 | L93: 1.023156311 | M93: 0.8375283049 | N93: =IF((N$82-v*t*(1+4*k*ax/v)^0.5)/(2*(ax*v*t)^0.5)>27,0,IF((N$82-v*t*(1+4*k*ax/v)^0.5)/(2*(ax*v*t)^0.5)>0,ERFC((N$82-v*t*(1+4*k*ax/v)^0.5)/(2*(ax*v*t)^0.5)),IF((N$82-v*t*(1+4*k*ax/v)^0.5)/(2*(ax*v*t)^0.5)<-27,2,1+ERF(ABS((N$82-v*t*(1+4*k*ax/v)^0.5)/(2*(ax*v*t)^0.5)))))) -> 0.6605612699 | O93: 0.5008069094 | P93: 0.364246604 | Q93: 0.253709634 | R93: 0.1689865366 | S93: 0.1074961632 | T93: 0.06523676765 | U93: 0.03773566807 | V93: 0.02078888736 | W93: 0.0109002955
A94: =+A93+dy -> 0.5 | D94: 1.942787595 | E94: 1.904605292 | F94: 1.848290705 | G94: 1.769642196 | H94: 1.66563316 | I94: 1.535387636 | J94: 1.380945489 | K94: 1.207533049 | L94: 1.023156311 | M94: 0.8375283049 | N94: 0.6605612699 | O94: 0.5008069094 | P94: 0.364246604 | Q94: 0.253709634 | R94: 0.1689865366 | S94: 0.1074961632 | T94: 0.06523676765 | U94: 0.03773566807 | V94: 0.02078888736 | W94: 0.0109002955
A95: =+A94+dy -> 1 | D95: 1.942787595 | E95: 1.904605292 | F95: 1.848290705 | G95: 1.769642196 | H95: 1.66563316 | I95: 1.535387636 | J95: 1.380945489 | K95: 1.207533049 | L95: 1.023156311 | M95: 0.8375283049 | N95: 0.6605612699 | O95: 0.5008069094 | P95: 0.364246604 | Q95: 0.253709634 | R95: 0.1689865366 | S95: 0.1074961632 | T95: 0.06523676765 | U95: 0.03773566807 | V95: 0.02078888736 | W95: 0.0109002955
A96: 1.5 | D96: 1.942787595 | E96: 1.904605292 | F96: 1.848290705 | G96: 1.769642196 | H96: 1.66563316 | I96: 1.535387636 | J96: 1.380945489 | K96: 1.207533049 | L96: 1.023156311 | M96: 0.8375283049 | N96: 0.6605612699 | O96: 0.5008069094 | P96: 0.364246604 | Q96: 0.253709634 | R96: 0.1689865366 | S96: 0.1074961632 | T96: 0.06523676765 | U96: 0.03773566807 | V96: 0.02078888736 | W96: 0.0109002955
A97: 2 | D97: 1.942787595 | E97: 1.904605292 | F97: 1.848290705 | G97: 1.769642196 | H97: 1.66563316 | I97: 1.535387636 | J97: 1.380945489 | K97: 1.207533049 | L97: 1.023156311 | M97: 0.8375283049 | N97: 0.6605612699 | O97: 0.5008069094 | P97: 0.364246604 | Q97: 0.253709634 | R97: 0.1689865366 | S97: 0.1074961632 | T97: 0.06523676765 | U97: 0.03773566807 | V97: 0.02078888736 | W97: 0.0109002955
A98: 2.5 | D98: 1.942787595 | E98: 1.904605292 | F98: 1.848290705 | G98: 1.769642196 | H98: 1.66563316 | I98: 1.535387636 | J98: 1.380945489 | K98: 1.207533049 | L98: 1.023156311 | M98: 0.8375283049 | N98: 0.6605612699 | O98: 0.5008069094 | P98: 0.364246604 | Q98: 0.253709634 | R98: 0.1689865366 | S98: 0.1074961632 | T98: 0.06523676765 | U98: 0.03773566807 | V98: 0.02078888736 | W98: 0.0109002955
A99: 3 | D99: 1.942787595 | E99: 1.904605292 | F99: 1.848290705 | G99: 1.769642196 | H99: 1.66563316 | I99: 1.535387636 | J99: 1.380945489 | K99: 1.207533049 | L99: 1.023156311 | M99: 0.8375283049 | N99: 0.6605612699 | O99: 0.5008069094 | P99: 0.364246604 | Q99: 0.253709634 | R99: 0.1689865366 | S99: 0.1074961632 | T99: 0.06523676765 | U99: 0.03773566807 | V99: 0.02078888736 | W99: 0.0109002955
A100: 3.5 | D100: 1.942787595 | E100: 1.904605292 | F100: 1.848290705 | G100: 1.769642196 | H100: 1.66563316 | I100: 1.535387636 | J100: 1.380945489 | K100: 1.207533049 | L100: 1.023156311 | M100: 0.8375283049 | N100: 0.6605612699 | O100: 0.5008069094 | P100: 0.364246604 | Q100: 0.253709634 | R100: 0.1689865366 | S100: 0.1074961632 | T100: 0.06523676765 | U100: 0.03773566807 | V100: 0.02078888736 | W100: 0.0109002955
A101: 4 | D101: 1.942787595 | E101: 1.904605292 | F101: 1.848290705 | G101: 1.769642196 | H101: 1.66563316 | I101: 1.535387636 | J101: 1.380945489 | K101: 1.207533049 | L101: 1.023156311 | M101: 0.8375283049 | N101: 0.6605612699 | O101: 0.5008069094 | P101: 0.364246604 | Q101: 0.253709634 | R101: 0.1689865366 | S101: 0.1074961632 | T101: 0.06523676765 | U101: 0.03773566807 | V101: 0.02078888736 | W101: 0.0109002955
A102: 4.5 | D102: 1.942787595 | E102: 1.904605292 | F102: 1.848290705 | G102: 1.769642196 | H102: 1.66563316 | I102: 1.535387636 | J102: 1.380945489 | K102: 1.207533049 | L102: 1.023156311 | M102: 0.8375283049 | N102: 0.6605612699 | O102: 0.5008069094 | P102: 0.364246604 | Q102: 0.253709634 | R102: 0.1689865366 | S102: 0.1074961632 | T102: 0.06523676765 | U102: 0.03773566807 | V102: 0.02078888736 | W102: 0.0109002955
A103: 5 | D103: 1.942787595 | E103: 1.904605292 | F103: 1.848290705 | G103: 1.769642196 | H103: 1.66563316 | I103: 1.535387636 | J103: 1.380945489 | K103: 1.207533049 | L103: 1.023156311 | M103: 0.8375283049 | N103: 0.6605612699 | O103: 0.5008069094 | P103: 0.364246604 | Q103: 0.253709634 | R103: 0.1689865366 | S103: 0.1074961632 | T103: 0.06523676765 | U103: 0.03773566807 | V103: 0.02078888736 | W103: 0.0109002955
A105: erfy term1
A106: y | B106: x--> | C106: 0.001 | D106: =+C106+dx -> 1.001 | E106: =+D106+dx -> 2.001 | F106: 3.001 | G106: 4.001 | H106: 5.001 | I106: 6.001 | J106: 7.001 | K106: 8.001 | L106: 9.001 | M106: 10.001 | N106: 11.001 | O106: 12.001 | P106: 13.001 | Q106: 14.001 | R106: 15.001 | S106: 16.001 | T106: 17.001 | U106: 18.001 | V106: 19.001 | W106: 20.001
A107: =+A108+dy -> 5 | C107: =IF(Y/2-A107<0,0,IF(d>Z,0,Co)) -> 0 | D107: =IF((($A107+Y/2)/(2*(ay*D$106)^0.5))>27,1,IF((($A107+Y/2)/(2*(ay*D$106)^0.5))>0,ERF(($A107+Y/2)/(2*(ay*D$106)^0.5)),IF((($A107+Y/2)/(2*(ay*D$106)^0.5))<-27,-1,-ERF(ABS(($A107+Y/2)/(2*(ay*D$106)^0.5)))))) -> 1 | E107: 1 | F107: 1 | G107: 1 | H107: 0.9999999999 | I107: 0.999999997 | J107: 0.9999999605 | K107: 0.9999997229 | L107: 0.999998731 | M107: 0.9999956925 | N107: =IF((($A107+Y/2)/(2*(ay*N$106)^0.5))>27,1,IF((($A107+Y/2)/(2*(ay*N$106)^0.5))>0,ERF(($A107+Y/2)/(2*(ay*N$106)^0.5)),IF((($A107+Y/2)/(2*(ay*N$106)^0.5))<-27,-1,-ERF(ABS(($A107+Y/2)/(2*(ay*N$106)^0.5)))))) -> 0.9999882459 | O107: 0.9999727798 | P107: 0.9999444538 | Q107: 0.9998973978 | R107: 0.9998250261 | S107: 0.9997203942 | T107: 0.9995765432 | U107: 0.9993867955 | V107: 0.9991449851 | W107: 0.9988456202
A108: 4.5 | C108: 0 | D108: 1 | E108: 1 | F108: 1 | G108: 1 | H108: 0.999999998 | I108: 0.9999999567 | J108: 0.9999996034 | K108: 0.9999978955 | L108: 0.9999922468 | M108: 0.9999778886 | N108: 0.9999476803 | O108: 0.9998924176 | P108: 0.9998014851 | Q108: 0.9996636415 | R108: 0.9994677661 | S108: 0.9992034682 | T108: 0.998861521 | U108: 0.9984341255 | V108: 0.9979150301 | W108: 0.9972995391
A109: 4 | C109: 0 | D109: 1 | E109: 1 | F109: 1 | G109: 0.9999999992 | H109: 0.9999999619 | I109: 0.9999994843 | J109: 0.9999966486 | K109: 0.9999862528 | L109: 0.9999585473 | M109: 0.9998992974 | N109: 0.9997910402 | O109: 0.9996148959 | P109: 0.9993523312 | Q109: 0.998986533 | R109: 0.9985032898 | S109: 0.9978914244 | T109: 0.9971428776 | U109: 0.9962525569 | V109: 0.9952180422 | W109: 0.9940392231
A110: 3.5 | C110: 0 | D110: 1 | E110: 1 | F110: 0.9999999999 | G110: 0.9999999772 | H110: 0.9999994252 | I110: 0.9999949806 | J110: 0.9999761557 | K110: 0.9999226934 | L110: 0.9998058991 | M110: 0.9995927756 | N110: 0.9992506229 | O110: 0.9987505819 | P110: 0.9980696823 | Q110: 0.9971915811 | R110: 0.9961063924 | S110: 0.9948099904 | T110: 0.9933030756 | U110: 0.9915901919 | V110: 0.9896788026 | W110: 0.9875784782
A111: 3 | C111: 0 | D111: 1 | E111: 1 | F111: 0.9999999937 | G111: 0.9999995109 | H111: 0.9999931903 | I111: 0.9999600168 | J111: 0.9998570009 | K111: 0.9996253709 | L111: 0.9992032335 | M111: 0.9985364798 | N111: 0.997584747 | O111: 0.9963229665 | P111: 0.9947401612 | Q111: 0.9928369711 | R111: 0.990622867 | S111: 0.9881135603 | T111: 0.9853288253 | U111: 0.9822907773 | V111: 0.9790225756 | W111: 0.9755474839
A112: 2.5 | C112: 0 | D112: 1 | E112: 0.9999999997 | F112: 0.9999997571 | G112: 0.9999922355 | H112: 0.9999365504 | I112: 0.9997389613 | J112: 0.9992761316 | K112: 0.998433535 | L112: 0.9971293349 | M112: 0.9953201981 | N112: 0.9929964808 | O112: 0.990173663 | P112: 0.986883827 | Q112: 0.9831686781 | R112: 0.9790743967 | S112: 0.9746481046 | T112: 0.9699355912 | U112: 0.9649799554 | V112: 0.9598208813 | W112: 0.9544943369
A113: 2 | C113: 0 | D113: 1 | E113: 0.9999999684 | F113: 0.9999937493 | G113: 0.9999087036 | H113: 0.9995341307 | I113: 0.9986006352 | J113: 0.9969018569 | K113: 0.9943394006 | L113: 0.9909086836 | M113: 0.986667053 | N113: 0.9817049693 | O113: 0.9761257052 | P113: 0.9700328559 | Q113: 0.9635234822 | R113: 0.9566848805 | S113: 0.9495935223 | T113: 0.9423152039 | U113: 0.934905815 | V113: 0.9274123748 | W113: 0.919874137
A114: 1.5 | C114: 24.80213594 | D114: 1 | E114: 0.9999978862 | F114: 0.9998922037 | G114: 0.9992025627 | H114: 0.997297544 | I114: 0.9938258175 | J114: 0.988764306 | K114: 0.9822868308 | L114: 0.9746445448 | M114: 0.9660962264 | N114: 0.9568760667 | O114: 0.9471826156 | P114: 0.937178038 | Q114: 0.9269917133 | R114: 0.9167252046 | S114: 0.90645724 | T114: 0.8962481584 | U114: 0.8861436619 | V114: 0.8761778887 | W114: 0.8663758837
A115: 1 | C115: 24.80213594 | D115: 0.9999999769 | E115: 0.9999224536 | F115: 0.9987488195 | G115: 0.9948057831 | H115: 0.9875719038 | I115: 0.977509902 | J115: 0.9653765213 | K115: 0.951879193 | L115: 0.9375780271 | M115: 0.9228853456 | N115: 0.90809302 | O115: 0.8934022399 | P115: 0.8789483575 | Q115: 0.8648197821 | R115: 0.8510717811 | S115: 0.8377363772 | T115: 0.8248293868 | U115: 0.8123554118 | V115: 0.8003113768 | W115: 0.7886890373
A116: =+A117+dy -> 0.5 | C116: 24.80213594 | D116: 0.9999921744 | E116: 0.9984303438 | F116: 0.9901644729 | G116: 0.9746343728 | H116: 0.9544781386 | I116: 0.9320879164 | J116: 0.9090079657 | K116: 0.886131112 | L116: 0.8639411197 | M116: 0.8426800381 | N116: 0.8224504455 | O116: 0.8032757454 | P116: 0.7851354156 | Q116: 0.7679856035 | R116: 0.7517711541 | S116: 0.7364326017 | T116: 0.7219101791 | U116: 0.708146051 | V116: 0.6950854854 | W116: 0.6826773939
A117: 0 | C117: 24.80213594 | D117: =IF((($A117+Y/2)/(2*(ay*D$106)^0.5))>27,1,IF((($A117+Y/2)/(2*(ay*D$106)^0.5))>0,ERF(($A117+Y/2)/(2*(ay*D$106)^0.5)),IF((($A117+Y/2)/(2*(ay*D$106)^0.5))<-27,-1,-ERF(ABS(($A117+Y/2)/(2*(ay*D$106)^0.5)))))) -> 0.999198934 | E117: 0.9822655138 | F117: 0.9471529947 | G117: 0.9064264986 | H117: 0.8663467436 | I117: 0.8290608274 | J117: 0.7950737594 | K117: 0.7642908136 | L117: 0.736420997 | M117: 0.7111315249 | N117: =IF((($A117+Y/2)/(2*(ay*N$106)^0.5))>27,1,IF((($A117+Y/2)/(2*(ay*N$106)^0.5))>0,ERF(($A117+Y/2)/(2*(ay*N$106)^0.5)),IF((($A117+Y/2)/(2*(ay*N$106)^0.5))<-27,-1,-ERF(ABS(($A117+Y/2)/(2*(ay*N$106)^0.5)))))) -> 0.6881050417 | O117: 0.6670582491 | P117: 0.647745261 | Q117: 0.6299551967 | R117: 0.6135079395 | S117: 0.5982496531 | T117: 0.5840486619 | U117: 0.5707918808 | V117: 0.5583818045 | W117: 0.5467340029
A118: =+A117+dy -> 0.5 | C118: 24.80213594 | D118: 0.9999921744 | E118: 0.9984303438 | F118: 0.9901644729 | G118: 0.9746343728 | H118: 0.9544781386 | I118: 0.9320879164 | J118: 0.9090079657 | K118: 0.886131112 | L118: 0.8639411197 | M118: 0.8426800381 | N118: 0.8224504455 | O118: 0.8032757454 | P118: 0.7851354156 | Q118: 0.7679856035 | R118: 0.7517711541 | S118: 0.7364326017 | T118: 0.7219101791 | U118: 0.708146051 | V118: 0.6950854854 | W118: 0.6826773939
A119: =+A118+dy -> 1 | C119: 24.80213594 | D119: 0.9999999769 | E119: 0.9999224536 | F119: 0.9987488195 | G119: 0.9948057831 | H119: 0.9875719038 | I119: 0.977509902 | J119: 0.9653765213 | K119: 0.951879193 | L119: 0.9375780271 | M119: 0.9228853456 | N119: 0.90809302 | O119: 0.8934022399 | P119: 0.8789483575 | Q119: 0.8648197821 | R119: 0.8510717811 | S119: 0.8377363772 | T119: 0.8248293868 | U119: 0.8123554118 | V119: 0.8003113768 | W119: 0.7886890373
A120: 1.5 | C120: 24.80213594 | D120: 1 | E120: 0.9999978862 | F120: 0.9998922037 | G120: 0.9992025627 | H120: 0.997297544 | I120: 0.9938258175 | J120: 0.988764306 | K120: 0.9822868308 | L120: 0.9746445448 | M120: 0.9660962264 | N120: 0.9568760667 | O120: 0.9471826156 | P120: 0.937178038 | Q120: 0.9269917133 | R120: 0.9167252046 | S120: 0.90645724 | T120: 0.8962481584 | U120: 0.8861436619 | V120: 0.8761778887 | W120: 0.8663758837
A121: 2 | C121: 0 | D121: 1 | E121: 0.9999999684 | F121: 0.9999937493 | G121: 0.9999087036 | H121: 0.9995341307 | I121: 0.9986006352 | J121: 0.9969018569 | K121: 0.9943394006 | L121: 0.9909086836 | M121: 0.986667053 | N121: 0.9817049693 | O121: 0.9761257052 | P121: 0.9700328559 | Q121: 0.9635234822 | R121: 0.9566848805 | S121: 0.9495935223 | T121: 0.9423152039 | U121: 0.934905815 | V121: 0.9274123748 | W121: 0.919874137
A122: 2.5 | C122: 0 | D122: 1 | E122: 0.9999999997 | F122: 0.9999997571 | G122: 0.9999922355 | H122: 0.9999365504 | I122: 0.9997389613 | J122: 0.9992761316 | K122: 0.998433535 | L122: 0.9971293349 | M122: 0.9953201981 | N122: 0.9929964808 | O122: 0.990173663 | P122: 0.986883827 | Q122: 0.9831686781 | R122: 0.9790743967 | S122: 0.9746481046 | T122: 0.9699355912 | U122: 0.9649799554 | V122: 0.9598208813 | W122: 0.9544943369
A123: 3 | C123: 0 | D123: 1 | E123: 1 | F123: 0.9999999937 | G123: 0.9999995109 | H123: 0.9999931903 | I123: 0.9999600168 | J123: 0.9998570009 | K123: 0.9996253709 | L123: 0.9992032335 | M123: 0.9985364798 | N123: 0.997584747 | O123: 0.9963229665 | P123: 0.9947401612 | Q123: 0.9928369711 | R123: 0.990622867 | S123: 0.9881135603 | T123: 0.9853288253 | U123: 0.9822907773 | V123: 0.9790225756 | W123: 0.9755474839
A124: 3.5 | C124: 0 | D124: 1 | E124: 1 | F124: 0.9999999999 | G124: 0.9999999772 | H124: 0.9999994252 | I124: 0.9999949806 | J124: 0.9999761557 | K124: 0.9999226934 | L124: 0.9998058991 | M124: 0.9995927756 | N124: 0.9992506229 | O124: 0.9987505819 | P124: 0.9980696823 | Q124: 0.9971915811 | R124: 0.9961063924 | S124: 0.9948099904 | T124: 0.9933030756 | U124: 0.9915901919 | V124: 0.9896788026 | W124: 0.9875784782
A125: 4 | C125: 0 | D125: 1 | E125: 1 | F125: 1 | G125: 0.9999999992 | H125: 0.9999999619 | I125: 0.9999994843 | J125: 0.9999966486 | K125: 0.9999862528 | L125: 0.9999585473 | M125: 0.9998992974 | N125: 0.9997910402 | O125: 0.9996148959 | P125: 0.9993523312 | Q125: 0.998986533 | R125: 0.9985032898 | S125: 0.9978914244 | T125: 0.9971428776 | U125: 0.9962525569 | V125: 0.9952180422 | W125: 0.9940392231
A126: 4.5 | C126: 0 | D126: 1 | E126: 1 | F126: 1 | G126: 1 | H126: 0.999999998 | I126: 0.9999999567 | J126: 0.9999996034 | K126: 0.9999978955 | L126: 0.9999922468 | M126: 0.9999778886 | N126: 0.9999476803 | O126: 0.9998924176 | P126: 0.9998014851 | Q126: 0.9996636415 | R126: 0.9994677661 | S126: 0.9992034682 | T126: 0.998861521 | U126: 0.9984341255 | V126: 0.9979150301 | W126: 0.9972995391
A127: 5 | C127: 0 | D127: 1 | E127: 1 | F127: 1 | G127: 1 | H127: 0.9999999999 | I127: 0.999999997 | J127: 0.9999999605 | K127: 0.9999997229 | L127: 0.999998731 | M127: 0.9999956925 | N127: 0.9999882459 | O127: 0.9999727798 | P127: 0.9999444538 | Q127: 0.9998973978 | R127: 0.9998250261 | S127: 0.9997203942 | T127: 0.9995765432 | U127: 0.9993867955 | V127: 0.9991449851 | W127: 0.9988456202
A129: erfy term 2 | J129: =ERFC(0.013)-1 -> -0.01466810286
A130: y | B130: x--> | C130: 0.001 | D130: =+C130+dx -> 1.001 | E130: =+D130+dx -> 2.001 | F130: 3.001 | G130: 4.001 | H130: 5.001 | I130: 6.001 | J130: 7.001 | K130: 8.001 | L130: 9.001 | M130: 10.001 | N130: 11.001 | O130: 12.001 | P130: 13.001 | Q130: 14.001 | R130: 15.001 | S130: 16.001 | T130: 17.001 | U130: 18.001 | V130: 19.001 | W130: 20.001
A131: =+A132+dy -> 5 | D131: =IF((($A131-Y/2)/(2*(ay*D$130)^0.5))>27,1,IF((($A131-Y/2)/(2*(ay*D$130)^0.5))>0,ERF(($A131-Y/2)/(2*(ay*D$130)^0.5)),IF((($A131-Y/2)/(2*(ay*D$130)^0.5))<-27,-1,-ERF(ABS(($A131-Y/2)/(2*(ay*D$130)^0.5)))))) -> 1 | E131: 0.9999999684 | F131: 0.9999937493 | G131: 0.9999087036 | H131: 0.9995341307 | I131: 0.9986006352 | J131: 0.9969018569 | K131: 0.9943394006 | L131: 0.9909086836 | M131: 0.986667053 | N131: =IF((($A131-Y/2)/(2*(ay*N$130)^0.5))>27,1,IF((($A131-Y/2)/(2*(ay*N$130)^0.5))>0,ERF(($A131-Y/2)/(2*(ay*N$130)^0.5)),IF((($A131-Y/2)/(2*(ay*N$130)^0.5))<-27,-1,-ERF(ABS(($A131-Y/2)/(2*(ay*N$130)^0.5)))))) -> 0.9817049693 | O131: 0.9761257052 | P131: 0.9700328559 | Q131: 0.9635234822 | R131: 0.9566848805 | S131: 0.9495935223 | T131: 0.9423152039 | U131: 0.934905815 | V131: 0.9274123748 | W131: 0.919874137
A132: 4.5 | D132: 1 | E132: 0.9999978862 | F132: 0.9998922037 | G132: 0.9992025627 | H132: 0.997297544 | I132: 0.9938258175 | J132: 0.988764306 | K132: 0.9822868308 | L132: 0.9746445448 | M132: 0.9660962264 | N132: 0.9568760667 | O132: 0.9471826156 | P132: 0.937178038 | Q132: 0.9269917133 | R132: 0.9167252046 | S132: 0.90645724 | T132: 0.8962481584 | U132: 0.8861436619 | V132: 0.8761778887 | W132: 0.8663758837
A133: 4 | D133: 0.9999999769 | E133: 0.9999224536 | F133: 0.9987488195 | G133: 0.9948057831 | H133: 0.9875719038 | I133: 0.977509902 | J133: 0.9653765213 | K133: 0.951879193 | L133: 0.9375780271 | M133: 0.9228853456 | N133: 0.90809302 | O133: 0.8934022399 | P133: 0.8789483575 | Q133: 0.8648197821 | R133: 0.8510717811 | S133: 0.8377363772 | T133: 0.8248293868 | U133: 0.8123554118 | V133: 0.8003113768 | W133: 0.7886890373
A134: 3.5 | D134: 0.9999921744 | E134: 0.9984303438 | F134: 0.9901644729 | G134: 0.9746343728 | H134: 0.9544781386 | I134: 0.9320879164 | J134: 0.9090079657 | K134: 0.886131112 | L134: 0.8639411197 | M134: 0.8426800381 | N134: 0.8224504455 | O134: 0.8032757454 | P134: 0.7851354156 | Q134: 0.7679856035 | R134: 0.7517711541 | S134: 0.7364326017 | T134: 0.7219101791 | U134: 0.708146051 | V134: 0.6950854854 | W134: 0.6826773939
A135: 3 | D135: 0.999198934 | E135: 0.9822655138 | F135: 0.9471529947 | G135: 0.9064264986 | H135: 0.8663467436 | I135: 0.8290608274 | J135: 0.7950737594 | K135: 0.7642908136 | L135: 0.736420997 | M135: 0.7111315249 | N135: 0.6881050417 | O135: 0.6670582491 | P135: 0.647745261 | Q135: 0.6299551967 | R135: 0.6135079395 | S135: 0.5982496531 | T135: 0.5840486619 | U135: 0.5707918808 | V135: 0.5583818045 | W135: 0.5467340029
A136: 2.5 | D136: 0.9745794198 | E136: 0.8860633464 | F136: 0.8032197951 | G136: 0.7363878434 | H136: 0.6826411028 | I136: 0.6386495611 | J136: 0.6019415822 | K136: 0.5707758585 | L136: 0.5439184353 | M136: 0.5204779096 | N136: 0.4997962634 | O136: 0.4813775606 | P136: 0.4648408461 | Q136: 0.4498884388 | R136: 0.4362841409 | S136: 0.4238379563 | T136: 0.4123951661 | U136: 0.4018283813 | V136: 0.3920316649 | W136: 0.3829161212
A137: 2 | D137: 0.7362088839 | E137: 0.5706893611 | F137: 0.481325303 | G137: 0.4238021972 | H137: 0.3828897209 | I137: 0.3518957887 | J137: 0.3273741585 | K137: 0.307348987 | L137: 0.2905964748 | M137: 0.2763131409 | N137: 0.263946881 | O137: 0.2531041819 | P137: 0.2434960091 | Q137: 0.2349046641 | R137: 0.2271626434 | S137: 0.2201386801 | T137: 0.2137282532 | U137: 0.2078469672 | V137: 0.20242583 | W137: 0.1974078182
A138: 1.5 | D138: 0 | E138: 0 | F138: 0 | G138: 0 | H138: 0 | I138: 0 | J138: 0 | K138: 0 | L138: 0 | M138: 0 | N138: 0 | O138: 0 | P138: 0 | Q138: 0 | R138: 0 | S138: 0 | T138: 0 | U138: 0 | V138: 0 | W138: 0
A139: 1 | D139: -0.7362088839 | E139: -0.5706893611 | F139: -0.481325303 | G139: -0.4238021972 | H139: -0.3828897209 | I139: -0.3518957887 | J139: -0.3273741585 | K139: -0.307348987 | L139: -0.2905964748 | M139: -0.2763131409 | N139: -0.263946881 | O139: -0.2531041819 | P139: -0.2434960091 | Q139: -0.2349046641 | R139: -0.2271626434 | S139: -0.2201386801 | T139: -0.2137282532 | U139: -0.2078469672 | V139: -0.20242583 | W139: -0.1974078182
A140: =+A141+dy -> 0.5 | D140: -0.9745794198 | E140: -0.8860633464 | F140: -0.8032197951 | G140: -0.7363878434 | H140: -0.6826411028 | I140: -0.6386495611 | J140: -0.6019415822 | K140: -0.5707758585 | L140: -0.5439184353 | M140: -0.5204779096 | N140: -0.4997962634 | O140: -0.4813775606 | P140: -0.4648408461 | Q140: -0.4498884388 | R140: -0.4362841409 | S140: -0.4238379563 | T140: -0.4123951661 | U140: -0.4018283813 | V140: -0.3920316649 | W140: -0.3829161212
A141: 0 | D141: =IF((($A141-Y/2)/(2*(ay*D$130)^0.5))>27,1,IF((($A141-Y/2)/(2*(ay*D$130)^0.5))>0,ERF(($A141-Y/2)/(2*(ay*D$130)^0.5)),IF((($A141-Y/2)/(2*(ay*D$130)^0.5))<-27,-1,-ERF(ABS(($A141-Y/2)/(2*(ay*D$130)^0.5)))))) -> -0.999198934 | E141: -0.9822655138 | F141: -0.9471529947 | G141: -0.9064264986 | H141: -0.8663467436 | I141: -0.8290608274 | J141: -0.7950737594 | K141: -0.7642908136 | L141: -0.736420997 | M141: -0.7111315249 | N141: =IF((($A141-Y/2)/(2*(ay*N$130)^0.5))>27,1,IF((($A141-Y/2)/(2*(ay*N$130)^0.5))>0,ERF(($A141-Y/2)/(2*(ay*N$130)^0.5)),IF((($A141-Y/2)/(2*(ay*N$130)^0.5))<-27,-1,-ERF(ABS(($A141-Y/2)/(2*(ay*N$130)^0.5)))))) -> -0.6881050417 | O141: -0.6670582491 | P141: -0.647745261 | Q141: -0.6299551967 | R141: -0.6135079395 | S141: -0.5982496531 | T141: -0.5840486619 | U141: -0.5707918808 | V141: -0.5583818045 | W141: -0.5467340029
A142: =+A141+dy -> 0.5 | D142: -0.9745794198 | E142: -0.8860633464 | F142: -0.8032197951 | G142: -0.7363878434 | H142: -0.6826411028 | I142: -0.6386495611 | J142: -0.6019415822 | K142: -0.5707758585 | L142: -0.5439184353 | M142: -0.5204779096 | N142: -0.4997962634 | O142: -0.4813775606 | P142: -0.4648408461 | Q142: -0.4498884388 | R142: -0.4362841409 | S142: -0.4238379563 | T142: -0.4123951661 | U142: -0.4018283813 | V142: -0.3920316649 | W142: -0.3829161212
A143: =+A142+dy -> 1 | D143: -0.7362088839 | E143: -0.5706893611 | F143: -0.481325303 | G143: -0.4238021972 | H143: -0.3828897209 | I143: -0.3518957887 | J143: -0.3273741585 | K143: -0.307348987 | L143: -0.2905964748 | M143: -0.2763131409 | N143: -0.263946881 | O143: -0.2531041819 | P143: -0.2434960091 | Q143: -0.2349046641 | R143: -0.2271626434 | S143: -0.2201386801 | T143: -0.2137282532 | U143: -0.2078469672 | V143: -0.20242583 | W143: -0.1974078182
A144: 1.5 | D144: 0 | E144: 0 | F144: 0 | G144: 0 | H144: 0 | I144: 0 | J144: 0 | K144: 0 | L144: 0 | M144: 0 | N144: 0 | O144: 0 | P144: 0 | Q144: 0 | R144: 0 | S144: 0 | T144: 0 | U144: 0 | V144: 0 | W144: 0
A145: 2 | D145: 0.7362088839 | E145: 0.5706893611 | F145: 0.481325303 | G145: 0.4238021972 | H145: 0.3828897209 | I145: 0.3518957887 | J145: 0.3273741585 | K145: 0.307348987 | L145: 0.2905964748 | M145: 0.2763131409 | N145: 0.263946881 | O145: 0.2531041819 | P145: 0.2434960091 | Q145: 0.2349046641 | R145: 0.2271626434 | S145: 0.2201386801 | T145: 0.2137282532 | U145: 0.2078469672 | V145: 0.20242583 | W145: 0.1974078182
A146: 2.5 | D146: 0.9745794198 | E146: 0.8860633464 | F146: 0.8032197951 | G146: 0.7363878434 | H146: 0.6826411028 | I146: 0.6386495611 | J146: 0.6019415822 | K146: 0.5707758585 | L146: 0.5439184353 | M146: 0.5204779096 | N146: 0.4997962634 | O146: 0.4813775606 | P146: 0.4648408461 | Q146: 0.4498884388 | R146: 0.4362841409 | S146: 0.4238379563 | T146: 0.4123951661 | U146: 0.4018283813 | V146: 0.3920316649 | W146: 0.3829161212
A147: 3 | D147: 0.999198934 | E147: 0.9822655138 | F147: 0.9471529947 | G147: 0.9064264986 | H147: 0.8663467436 | I147: 0.8290608274 | J147: 0.7950737594 | K147: 0.7642908136 | L147: 0.736420997 | M147: 0.7111315249 | N147: 0.6881050417 | O147: 0.6670582491 | P147: 0.647745261 | Q147: 0.6299551967 | R147: 0.6135079395 | S147: 0.5982496531 | T147: 0.5840486619 | U147: 0.5707918808 | V147: 0.5583818045 | W147: 0.5467340029
A148: 3.5 | D148: 0.9999921744 | E148: 0.9984303438 | F148: 0.9901644729 | G148: 0.9746343728 | H148: 0.9544781386 | I148: 0.9320879164 | J148: 0.9090079657 | K148: 0.886131112 | L148: 0.8639411197 | M148: 0.8426800381 | N148: 0.8224504455 | O148: 0.8032757454 | P148: 0.7851354156 | Q148: 0.7679856035 | R148: 0.7517711541 | S148: 0.7364326017 | T148: 0.7219101791 | U148: 0.708146051 | V148: 0.6950854854 | W148: 0.6826773939
A149: 4 | D149: 0.9999999769 | E149: 0.9999224536 | F149: 0.9987488195 | G149: 0.9948057831 | H149: 0.9875719038 | I149: 0.977509902 | J149: 0.9653765213 | K149: 0.951879193 | L149: 0.9375780271 | M149: 0.9228853456 | N149: 0.90809302 | O149: 0.8934022399 | P149: 0.8789483575 | Q149: 0.8648197821 | R149: 0.8510717811 | S149: 0.8377363772 | T149: 0.8248293868 | U149: 0.8123554118 | V149: 0.8003113768 | W149: 0.7886890373
A150: 4.5 | D150: 1 | E150: 0.9999978862 | F150: 0.9998922037 | G150: 0.9992025627 | H150: 0.997297544 | I150: 0.9938258175 | J150: 0.988764306 | K150: 0.9822868308 | L150: 0.9746445448 | M150: 0.9660962264 | N150: 0.9568760667 | O150: 0.9471826156 | P150: 0.937178038 | Q150: 0.9269917133 | R150: 0.9167252046 | S150: 0.90645724 | T150: 0.8962481584 | U150: 0.8861436619 | V150: 0.8761778887 | W150: 0.8663758837
A151: 5 | D151: 1 | E151: 0.9999999684 | F151: 0.9999937493 | G151: 0.9999087036 | H151: 0.9995341307 | I151: 0.9986006352 | J151: 0.9969018569 | K151: 0.9943394006 | L151: 0.9909086836 | M151: 0.986667053 | N151: 0.9817049693 | O151: 0.9761257052 | P151: 0.9700328559 | Q151: 0.9635234822 | R151: 0.9566848805 | S151: 0.9495935223 | T151: 0.9423152039 | U151: 0.934905815 | V151: 0.9274123748 | W151: 0.919874137
A154: erfz term 1
A155: y | B155: x--> | C155: 0.001 | D155: =+C155+dx -> 1.001 | E155: =+D155+dx -> 2.001 | F155: 3.001 | G155: 4.001 | H155: 5.001 | I155: 6.001 | J155: 7.001 | K155: 8.001 | L155: 9.001 | M155: 10.001 | N155: 11.001 | O155: 12.001 | P155: 13.001 | Q155: 14.001 | R155: 15.001 | S155: 16.001 | T155: 17.001 | U155: 18.001 | V155: 19.001 | W155: 20.001
A156: =+A157+dy -> 5 | D156: =IF(((d+Z)/(2*(az*D$155)^0.5))>27,1,IF(((d+Z)/(2*(az*D$155)^0.5))>0,ERF(((d+Z)/(2*(az*D$155)^0.5))),IF(((d+Z)/(2*(az*D$155)^0.5))<-27,-1,-ERF(ABS(((d+Z)/(2*(az*D$155)^0.5))))))) -> 1 | E156: 1 | F156: 1 | G156: 1 | H156: 1 | I156: 1 | J156: 1 | K156: 1 | L156: 1 | M156: 1 | N156: =IF(((d+Z)/(2*(az*N$155)^0.5))>27,1,IF(((d+Z)/(2*(az*N$155)^0.5))>0,ERF(((d+Z)/(2*(az*N$155)^0.5))),IF(((d+Z)/(2*(az*N$155)^0.5))<-27,-1,-ERF(ABS(((d+Z)/(2*(az*N$155)^0.5))))))) -> 1 | O156: 1 | P156: 1 | Q156: 1 | R156: 1 | S156: 1 | T156: 1 | U156: 1 | V156: 1 | W156: 1
A157: 4.5 | D157: 1 | E157: 1 | F157: 1 | G157: 1 | H157: 1 | I157: 1 | J157: 1 | K157: 1 | L157: 1 | M157: 1 | N157: 1 | O157: 1 | P157: 1 | Q157: 1 | R157: 1 | S157: 1 | T157: 1 | U157: 1 | V157: 1 | W157: 1
A158: 4 | D158: 1 | E158: 1 | F158: 1 | G158: 1 | H158: 1 | I158: 1 | J158: 1 | K158: 1 | L158: 1 | M158: 1 | N158: 1 | O158: 1 | P158: 1 | Q158: 1 | R158: 1 | S158: 1 | T158: 1 | U158: 1 | V158: 1 | W158: 1
A159: 3.5 | D159: 1 | E159: 1 | F159: 1 | G159: 1 | H159: 1 | I159: 1 | J159: 1 | K159: 1 | L159: 1 | M159: 1 | N159: 1 | O159: 1 | P159: 1 | Q159: 1 | R159: 1 | S159: 1 | T159: 1 | U159: 1 | V159: 1 | W159: 1
A160: 3 | D160: 1 | E160: 1 | F160: 1 | G160: 1 | H160: 1 | I160: 1 | J160: 1 | K160: 1 | L160: 1 | M160: 1 | N160: 1 | O160: 1 | P160: 1 | Q160: 1 | R160: 1 | S160: 1 | T160: 1 | U160: 1 | V160: 1 | W160: 1
A161: 2.5 | D161: 1 | E161: 1 | F161: 1 | G161: 1 | H161: 1 | I161: 1 | J161: 1 | K161: 1 | L161: 1 | M161: 1 | N161: 1 | O161: 1 | P161: 1 | Q161: 1 | R161: 1 | S161: 1 | T161: 1 | U161: 1 | V161: 1 | W161: 1
A162: 2 | D162: 1 | E162: 1 | F162: 1 | G162: 1 | H162: 1 | I162: 1 | J162: 1 | K162: 1 | L162: 1 | M162: 1 | N162: 1 | O162: 1 | P162: 1 | Q162: 1 | R162: 1 | S162: 1 | T162: 1 | U162: 1 | V162: 1 | W162: 1
A163: 1.5 | D163: 1 | E163: 1 | F163: 1 | G163: 1 | H163: 1 | I163: 1 | J163: 1 | K163: 1 | L163: 1 | M163: 1 | N163: 1 | O163: 1 | P163: 1 | Q163: 1 | R163: 1 | S163: 1 | T163: 1 | U163: 1 | V163: 1 | W163: 1
A164: 1 | D164: 1 | E164: 1 | F164: 1 | G164: 1 | H164: 1 | I164: 1 | J164: 1 | K164: 1 | L164: 1 | M164: 1 | N164: 1 | O164: 1 | P164: 1 | Q164: 1 | R164: 1 | S164: 1 | T164: 1 | U164: 1 | V164: 1 | W164: 1
A165: =+A166+dy -> 0.5 | D165: 1 | E165: 1 | F165: 1 | G165: 1 | H165: 1 | I165: 1 | J165: 1 | K165: 1 | L165: 1 | M165: 1 | N165: 1 | O165: 1 | P165: 1 | Q165: 1 | R165: 1 | S165: 1 | T165: 1 | U165: 1 | V165: 1 | W165: 1
A166: 0 | D166: =IF(((d+Z)/(2*(az*D$155)^0.5))>27,1,IF(((d+Z)/(2*(az*D$155)^0.5))>0,ERF(((d+Z)/(2*(az*D$155)^0.5))),IF(((d+Z)/(2*(az*D$155)^0.5))<-27,-1,-ERF(ABS(((d+Z)/(2*(az*D$155)^0.5))))))) -> 1 | E166: 1 | F166: 1 | G166: 1 | H166: 1 | I166: 1 | J166: 1 | K166: 1 | L166: 1 | M166: 1 | N166: =IF(((d+Z)/(2*(az*N$155)^0.5))>27,1,IF(((d+Z)/(2*(az*N$155)^0.5))>0,ERF(((d+Z)/(2*(az*N$155)^0.5))),IF(((d+Z)/(2*(az*N$155)^0.5))<-27,-1,-ERF(ABS(((d+Z)/(2*(az*N$155)^0.5))))))) -> 1 | O166: 1 | P166: 1 | Q166: 1 | R166: 1 | S166: 1 | T166: 1 | U166: 1 | V166: 1 | W166: 1
A167: =+A166+dy -> 0.5 | D167: 1 | E167: 1 | F167: 1 | G167: 1 | H167: 1 | I167: 1 | J167: 1 | K167: 1 | L167: 1 | M167: 1 | N167: 1 | O167: 1 | P167: 1 | Q167: 1 | R167: 1 | S167: 1 | T167: 1 | U167: 1 | V167: 1 | W167: 1
A168: =+A167+dy -> 1 | D168: 1 | E168: 1 | F168: 1 | G168: 1 | H168: 1 | I168: 1 | J168: 1 | K168: 1 | L168: 1 | M168: 1 | N168: 1 | O168: 1 | P168: 1 | Q168: 1 | R168: 1 | S168: 1 | T168: 1 | U168: 1 | V168: 1 | W168: 1
A169: 1.5 | D169: 1 | E169: 1 | F169: 1 | G169: 1 | H169: 1 | I169: 1 | J169: 1 | K169: 1 | L169: 1 | M169: 1 | N169: 1 | O169: 1 | P169: 1 | Q169: 1 | R169: 1 | S169: 1 | T169: 1 | U169: 1 | V169: 1 | W169: 1
A170: 2 | D170: 1 | E170: 1 | F170: 1 | G170: 1 | H170: 1 | I170: 1 | J170: 1 | K170: 1 | L170: 1 | M170: 1 | N170: 1 | O170: 1 | P170: 1 | Q170: 1 | R170: 1 | S170: 1 | T170: 1 | U170: 1 | V170: 1 | W170: 1
A171: 2.5 | D171: 1 | E171: 1 | F171: 1 | G171: 1 | H171: 1 | I171: 1 | J171: 1 | K171: 1 | L171: 1 | M171: 1 | N171: 1 | O171: 1 | P171: 1 | Q171: 1 | R171: 1 | S171: 1 | T171: 1 | U171: 1 | V171: 1 | W171: 1
A172: 3 | D172: 1 | E172: 1 | F172: 1 | G172: 1 | H172: 1 | I172: 1 | J172: 1 | K172: 1 | L172: 1 | M172: 1 | N172: 1 | O172: 1 | P172: 1 | Q172: 1 | R172: 1 | S172: 1 | T172: 1 | U172: 1 | V172: 1 | W172: 1
A173: 3.5 | D173: 1 | E173: 1 | F173: 1 | G173: 1 | H173: 1 | I173: 1 | J173: 1 | K173: 1 | L173: 1 | M173: 1 | N173: 1 | O173: 1 | P173: 1 | Q173: 1 | R173: 1 | S173: 1 | T173: 1 | U173: 1 | V173: 1 | W173: 1
A174: 4 | D174: 1 | E174: 1 | F174: 1 | G174: 1 | H174: 1 | I174: 1 | J174: 1 | K174: 1 | L174: 1 | M174: 1 | N174: 1 | O174: 1 | P174: 1 | Q174: 1 | R174: 1 | S174: 1 | T174: 1 | U174: 1 | V174: 1 | W174: 1
A175: 4.5 | D175: 1 | E175: 1 | F175: 1 | G175: 1 | H175: 1 | I175: 1 | J175: 1 | K175: 1 | L175: 1 | M175: 1 | N175: 1 | O175: 1 | P175: 1 | Q175: 1 | R175: 1 | S175: 1 | T175: 1 | U175: 1 | V175: 1 | W175: 1
A176: 5 | D176: 1 | E176: 1 | F176: 1 | G176: 1 | H176: 1 | I176: 1 | J176: 1 | K176: 1 | L176: 1 | M176: 1 | N176: 1 | O176: 1 | P176: 1 | Q176: 1 | R176: 1 | S176: 1 | T176: 1 | U176: 1 | V176: 1 | W176: 1
A179: erfz term 2
A180: y | B180: x--> | C180: 0.001 | D180: =+C180+dx -> 1.001 | E180: =+D180+dx -> 2.001 | F180: 3.001 | G180: 4.001 | H180: 5.001 | I180: 6.001 | J180: 7.001 | K180: 8.001 | L180: 9.001 | M180: 10.001 | N180: 11.001 | O180: 12.001 | P180: 13.001 | Q180: 14.001 | R180: 15.001 | S180: 16.001 | T180: 17.001 | U180: 18.001 | V180: 19.001 | W180: 20.001
A181: =+A182+dy -> 5 | D181: =IF(((d-Z)/(2*(az*D$180)^0.5))>27,1,IF(((d-Z)/(2*(az*D$180)^0.5))>0,ERF(((d-Z)/(2*(az*D$180)^0.5))),IF(((d-Z)/(2*(az*D$180)^0.5))<-27,-1,-ERF(ABS(((d-Z)/(2*(az*D$180)^0.5))))))) -> -1 | E181: -1 | F181: -1 | G181: -1 | H181: -1 | I181: -1 | J181: -1 | K181: -1 | L181: -1 | M181: -1 | N181: =IF(((d-Z)/(2*(az*N$180)^0.5))>27,1,IF(((d-Z)/(2*(az*N$180)^0.5))>0,ERF(((d-Z)/(2*(az*N$180)^0.5))),IF(((d-Z)/(2*(az*N$180)^0.5))<-27,-1,-ERF(ABS(((d-Z)/(2*(az*N$180)^0.5))))))) -> -1 | O181: -1 | P181: -1 | Q181: -1 | R181: -1 | S181: -1 | T181: -1 | U181: -1 | V181: -1 | W181: -1
A182: 4.5 | D182: -1 | E182: -1 | F182: -1 | G182: -1 | H182: -1 | I182: -1 | J182: -1 | K182: -1 | L182: -1 | M182: -1 | N182: -1 | O182: -1 | P182: -1 | Q182: -1 | R182: -1 | S182: -1 | T182: -1 | U182: -1 | V182: -1 | W182: -1
A183: 4 | D183: -1 | E183: -1 | F183: -1 | G183: -1 | H183: -1 | I183: -1 | J183: -1 | K183: -1 | L183: -1 | M183: -1 | N183: -1 | O183: -1 | P183: -1 | Q183: -1 | R183: -1 | S183: -1 | T183: -1 | U183: -1 | V183: -1 | W183: -1
A184: 3.5 | D184: -1 | E184: -1 | F184: -1 | G184: -1 | H184: -1 | I184: -1 | J184: -1 | K184: -1 | L184: -1 | M184: -1 | N184: -1 | O184: -1 | P184: -1 | Q184: -1 | R184: -1 | S184: -1 | T184: -1 | U184: -1 | V184: -1 | W184: -1
A185: 3 | D185: -1 | E185: -1 | F185: -1 | G185: -1 | H185: -1 | I185: -1 | J185: -1 | K185: -1 | L185: -1 | M185: -1 | N185: -1 | O185: -1 | P185: -1 | Q185: -1 | R185: -1 | S185: -1 | T185: -1 | U185: -1 | V185: -1 | W185: -1
A186: 2.5 | D186: -1 | E186: -1 | F186: -1 | G186: -1 | H186: -1 | I186: -1 | J186: -1 | K186: -1 | L186: -1 | M186: -1 | N186: -1 | O186: -1 | P186: -1 | Q186: -1 | R186: -1 | S186: -1 | T186: -1 | U186: -1 | V186: -1 | W186: -1
A187: 2 | D187: -1 | E187: -1 | F187: -1 | G187: -1 | H187: -1 | I187: -1 | J187: -1 | K187: -1 | L187: -1 | M187: -1 | N187: -1 | O187: -1 | P187: -1 | Q187: -1 | R187: -1 | S187: -1 | T187: -1 | U187: -1 | V187: -1 | W187: -1
A188: 1.5 | D188: -1 | E188: -1 | F188: -1 | G188: -1 | H188: -1 | I188: -1 | J188: -1 | K188: -1 | L188: -1 | M188: -1 | N188: -1 | O188: -1 | P188: -1 | Q188: -1 | R188: -1 | S188: -1 | T188: -1 | U188: -1 | V188: -1 | W188: -1
A189: 1 | D189: -1 | E189: -1 | F189: -1 | G189: -1 | H189: -1 | I189: -1 | J189: -1 | K189: -1 | L189: -1 | M189: -1 | N189: -1 | O189: -1 | P189: -1 | Q189: -1 | R189: -1 | S189: -1 | T189: -1 | U189: -1 | V189: -1 | W189: -1
A190: =+A191+dy -> 0.5 | D190: -1 | E190: -1 | F190: -1 | G190: -1 | H190: -1 | I190: -1 | J190: -1 | K190: -1 | L190: -1 | M190: -1 | N190: -1 | O190: -1 | P190: -1 | Q190: -1 | R190: -1 | S190: -1 | T190: -1 | U190: -1 | V190: -1 | W190: -1
A191: 0 | D191: =IF(((d-Z)/(2*(az*D$180)^0.5))>27,1,IF(((d-Z)/(2*(az*D$180)^0.5))>0,ERF(((d-Z)/(2*(az*D$180)^0.5))),IF(((d-Z)/(2*(az*D$180)^0.5))<-27,-1,-ERF(ABS(((d-Z)/(2*(az*D$180)^0.5))))))) -> -1 | E191: -1 | F191: -1 | G191: -1 | H191: -1 | I191: -1 | J191: -1 | K191: -1 | L191: -1 | M191: -1 | N191: =IF(((d-Z)/(2*(az*N$180)^0.5))>27,1,IF(((d-Z)/(2*(az*N$180)^0.5))>0,ERF(((d-Z)/(2*(az*N$180)^0.5))),IF(((d-Z)/(2*(az*N$180)^0.5))<-27,-1,-ERF(ABS(((d-Z)/(2*(az*N$180)^0.5))))))) -> -1 | O191: -1 | P191: -1 | Q191: -1 | R191: -1 | S191: -1 | T191: -1 | U191: -1 | V191: -1 | W191: -1
A192: =+A191+dy -> 0.5 | D192: -1 | E192: -1 | F192: -1 | G192: -1 | H192: -1 | I192: -1 | J192: -1 | K192: -1 | L192: -1 | M192: -1 | N192: -1 | O192: -1 | P192: -1 | Q192: -1 | R192: -1 | S192: -1 | T192: -1 | U192: -1 | V192: -1 | W192: -1
A193: =+A192+dy -> 1 | D193: -1 | E193: -1 | F193: -1 | G193: -1 | H193: -1 | I193: -1 | J193: -1 | K193: -1 | L193: -1 | M193: -1 | N193: -1 | O193: -1 | P193: -1 | Q193: -1 | R193: -1 | S193: -1 | T193: -1 | U193: -1 | V193: -1 | W193: -1
A194: 1.5 | D194: -1 | E194: -1 | F194: -1 | G194: -1 | H194: -1 | I194: -1 | J194: -1 | K194: -1 | L194: -1 | M194: -1 | N194: -1 | O194: -1 | P194: -1 | Q194: -1 | R194: -1 | S194: -1 | T194: -1 | U194: -1 | V194: -1 | W194: -1
A195: 2 | D195: -1 | E195: -1 | F195: -1 | G195: -1 | H195: -1 | I195: -1 | J195: -1 | K195: -1 | L195: -1 | M195: -1 | N195: -1 | O195: -1 | P195: -1 | Q195: -1 | R195: -1 | S195: -1 | T195: -1 | U195: -1 | V195: -1 | W195: -1
A196: 2.5 | D196: -1 | E196: -1 | F196: -1 | G196: -1 | H196: -1 | I196: -1 | J196: -1 | K196: -1 | L196: -1 | M196: -1 | N196: -1 | O196: -1 | P196: -1 | Q196: -1 | R196: -1 | S196: -1 | T196: -1 | U196: -1 | V196: -1 | W196: -1
A197: 3 | D197: -1 | E197: -1 | F197: -1 | G197: -1 | H197: -1 | I197: -1 | J197: -1 | K197: -1 | L197: -1 | M197: -1 | N197: -1 | O197: -1 | P197: -1 | Q197: -1 | R197: -1 | S197: -1 | T197: -1 | U197: -1 | V197: -1 | W197: -1
A198: 3.5 | D198: -1 | E198: -1 | F198: -1 | G198: -1 | H198: -1 | I198: -1 | J198: -1 | K198: -1 | L198: -1 | M198: -1 | N198: -1 | O198: -1 | P198: -1 | Q198: -1 | R198: -1 | S198: -1 | T198: -1 | U198: -1 | V198: -1 | W198: -1
A199: 4 | D199: -1 | E199: -1 | F199: -1 | G199: -1 | H199: -1 | I199: -1 | J199: -1 | K199: -1 | L199: -1 | M199: -1 | N199: -1 | O199: -1 | P199: -1 | Q199: -1 | R199: -1 | S199: -1 | T199: -1 | U199: -1 | V199: -1 | W199: -1
A200: 4.5 | D200: -1 | E200: -1 | F200: -1 | G200: -1 | H200: -1 | I200: -1 | J200: -1 | K200: -1 | L200: -1 | M200: -1 | N200: -1 | O200: -1 | P200: -1 | Q200: -1 | R200: -1 | S200: -1 | T200: -1 | U200: -1 | V200: -1 | W200: -1
A201: 5 | D201: -1 | E201: -1 | F201: -1 | G201: -1 | H201: -1 | I201: -1 | J201: -1 | K201: -1 | L201: -1 | M201: -1 | N201: -1 | O201: -1 | P201: -1 | Q201: -1 | R201: -1 | S201: -1 | T201: -1 | U201: -1 | V201: -1 | W201: -1
